Cogmind - Beta 10.2 @@@ ROGUE MODE // 2022.01.08 @ 17:54:05 // Winter2019/RPGLIKE Player: Pogmind Result: Fortifying 0b10! Performance ------------- Evolutions (9) 4500 Regions Visited (38) 7600 Robots Destroyed (1242) 6210 Value Destroyed (72246) 72246 Prototype IDs (146) 2920 Alien Tech Used (14) 2800 Bonus (33749) 33749 TOTAL SCORE: 130025 Bonus ------- High Alert Combat Kills 9709 Follower Combat Kills 5173 Entered Garrisons 1800 Used RIF Installer 4500 Network Hubs Disabled 600 Aligned with FarCom 300 Destroyed MAIN.C Guards 500 Met MAIN.C 5000 Destroyed MAIN.C Shell 5000 Win 3000 Friendly Fire -1833 Cogmind --------- Core Integrity 1050/1050 Matter 279/300 Energy 973/1050 System Corruption 0% Temperature Cool (195) Movement Hovering (26) Location By MAIN.C's Side Parts ------- > --- POWER (2) -------- Vortex Chain Reactor > --- PROPULSION (4) --- Cooled Gravmag System Cooled Gravmag System Cooled Gravmag System Cooled Gravmag System > --- UTILITY (12) ----- Experimental Coolant Injector Advanced Salvage Targeting Computer Experimental Target Analyzer Experimental Core Analyzer Armor Integrity Analyzer Recoil Nullifier Advanced Kinecellerator Experimental Weapon Cycler Advanced Reaction Control System Experimental Phase Shifter EM Dispersion Field AEGIS Remote Shield > --- WEAPON (8) ------- Sigix Quantum Sheargun Sigix Quantum Sheargun Enhanced Autogun Enhanced Autogun Enhanced Autogun Enhanced Autogun Enhanced Autogun Multirail > --- INVENTORY (10) --- Protomatter-77 Experimental Terrain Scanner SHELL Armor Thermal Barrier High-powered Transdimensional Reconstructor Multirail Multirail Enhanced Force Lance Peak State ------------ > --- POWER ------------ Improved Quantum Reactor > --- PROPULSION ------- Cooled Gravmag System Cooled Gravmag System Cooled Gravmag System Cooled Gravmag System > --- UTILITY ---------- Experimental Terrain Scanner Advanced Salvage Targeting Computer Experimental Target Analyzer Experimental Core Analyzer Experimental Armor Integrity Analyzer Recoil Nullifier Advanced Kinecellerator Experimental Weapon Cycler Advanced Reaction Control System Experimental Phase Shifter Experimental Shield Generator > --- WEAPON ----------- Sigix Quantum Sheargun Sigix Quantum Sheargun Enhanced Autogun Multirail Multirail Multirail Multirail Multirail > --- INVENTORY -------- Protomatter EM Dispersion Field Antimissile System High-powered Transdimensional Reconstructor Enhanced Autogun Enhanced Autogun Enhanced Autogun Enhanced Autogun Enhanced Force Lance [Rating: 228] Favorites ----------- Power Quantum Reactor Engine Ion Engine Power Core Light Nuclear Core Reactor Quantum Reactor Propulsion Cooled Gravmag System Treads Light Treads Leg Myomer Exoskeleton Hover Unit Cooled Gravmag System Flight Unit Nuclear Pulse Array Utility Advanced Terrain Scanner Device Advanced Terrain Scanner Storage Improved Energy Well Processor Armor Integrity Analyzer Hackware Relay Coupler [NC] Protection Damper Plating Artifact Matter Drive Weapon Enhanced Autogun Energy Gun Sigix Quantum Sheargun Energy Cannon Core Cannon Ballistic Gun Enhanced Autogun Ballistic Cannon AWS/Autocannon Launcher Rocket Launcher Special Weapon Advanced Remote Datajack Slashing Weapon Power Sword Piercing Weapon Enhanced Force Lance Build | -11 -10 -10 -10 -9 -8 -8 -8 -7 -7 -7 -7 -7 -7 -6 -6 -6 -6 -6 -6 -6 -6 -5 -5 -5 -5 -4 -4 -4 -4 -3 -3 -3 -2 -2 -2 -2 -1 -1 ------- Run | Scr Mat Min Exi Min Mat Gar Mat Fac Was Fac Gar Fac Gar Fac Was Fac Ext Cet Arc Hub Gar Fac Was Fac Gar Fac Gar Fac Gar Res Tes Gar Res Qua Sec Gar Acc Com Slots Evolved 21 | 2 2 1 . 2 3 . 1 . . . 2 . . 1 . . . . . . . . . . . 1 . . . 1 1 . 1 . . 1 . 2 Power 1 | . . . . . . . . . . . . . . . . . . . . . . . . . . . . . . . . . . . . . . 1 Propulsion 3 | 1 . . . . 2 . . . . . . . . . . . . . . . . . . . . . . . . . . . . . . . . . Utility 11 | . 2 . . 1 1 . 1 . . . 1 . . 1 . . . . . . . . . . . 1 . . . . . . 1 . . 1 . 1 Weapon 6 | 1 . 1 . 1 . . . . . . 1 . . . . . . . . . . . . . . . . . . 1 1 . . . . . . . Parts Attached 677 | 6 10 7 22 5 27 8 14 1 8 21 12 28 11 9 11 9 5 9 . 14 13 22 . 24 16 44 13 23 1 42 46 11 28 11 35 17 46 48 Power 29 | 1 . 1 3 . . . 2 . 3 2 . . . . . . . 1 . . . 3 . . . . . 4 . 3 1 . . . . . . 5 Engine 5 | 1 . . 1 . . . 1 . 1 . . . . . . . . . . . . . . . . . . 1 . . . . . . . . . . Core 4 | . . 1 . . . . . . . 1 . . . . . . . . . . . 1 . . . . . . . . . . . . . . . 1 Reactor 20 | . . . 2 . . . 1 . 2 1 . . . . . . . 1 . . . 2 . . . . . 3 . 3 1 . . . . . . 4 Propulsion 45 | 2 . . 1 . 5 . . . 1 2 . 2 . . 2 . . 1 . . 2 3 . 2 . 8 . . . 6 8 . . . . . . . Treads 8 | 2 . . 1 . 1 . . . . . . . . . 2 . . 1 . . . . . . . . . . . 1 . . . . . . . . Leg 1 | . . . . . . . . . . . . . . . . . . . . . . . . . . . . . . . 1 . . . . . . . Wheel . | . . . . . . . . . . . . . . . . . . . . . . . . . . . . . . . . . . . . . . . Hover 34 | . . . . . 4 . . . 1 2 . 2 . . . . . . . . 2 3 . 2 . 8 . . . 4 6 . . . . . . . Flight 2 | . . . . . . . . . . . . . . . . . . . . . . . . . . . . . . 1 1 . . . . . . . Utility 326 | 1 4 . 6 4 4 . 4 . . 7 6 11 5 7 2 2 3 2 . 8 4 10 . 15 6 29 10 14 1 19 20 9 22 6 25 15 13 32 Device 244 | 1 1 . 4 4 3 . 2 . . 4 2 3 3 4 1 2 3 1 . 8 3 9 . 13 3 24 4 10 1 15 16 5 20 4 23 11 8 29 Storage 4 | . . . . . . . . . . . . . . . . . . . . . . . . . . . . 1 . . 2 . . . . . . 1 Processor 22 | . 3 . . . 1 . 1 . . . . 2 1 2 . . . . . . . . . 1 . 3 . 1 . 2 . . . . 2 . 1 2 Hackware 38 | . . . 2 . . . . . . 1 3 3 1 1 . . . . . . 1 1 . 1 3 1 2 1 . 1 2 4 2 1 . 4 3 . Protection 17 | . . . . . . . 1 . . 2 1 3 . . 1 . . 1 . . . . . . . 1 4 1 . 1 . . . . . . 1 . Artifact 1 | . . . . . . . . . . . . . . . . . . . . . . . . . . . . . . . . . . 1 . . . . Weapon 277 | 2 6 6 12 1 18 8 8 1 4 10 6 15 6 2 7 7 2 5 . 6 7 6 . 7 10 7 3 5 . 14 17 2 6 5 10 2 33 11 Energy Gun 50 | . 3 2 3 1 10 2 1 . 2 2 1 . . . . . . 2 . 2 . 2 . . . . 1 1 . 3 . . . . 3 . 8 1 Energy Cannon 2 | . . . . . . . . . . . . . . . . . . . . . . . . . . . . . . . 1 . . 1 . . . . Ballistic Gun 81 | 2 3 2 3 . 2 4 6 1 2 5 1 4 . . 2 . . 1 . . . 1 . 2 . . . . . 4 2 . 1 2 5 . 20 6 Ballistic Cannon 13 | . . . 5 . 2 . . . . 1 . . . . . . . . . . . . . . . . . 1 . . . . . . 2 . . 2 Launcher 28 | . . 2 1 . 1 2 1 . . 2 2 3 2 1 . 2 1 . . . 2 . . 2 2 1 . . . 1 . . . . . . . . Special Weapon 47 | . . . . . . . . . . . 2 7 1 . 4 2 1 1 . 1 2 1 . 1 5 4 1 . . 3 6 2 1 1 . . 1 . Impact Weapon . | . . . . . . . . . . . . . . . . . . . . . . . . . . . . . . . . . . . . . . . Slashing Weapon 29 | . . . . . 3 . . . . . . 1 3 1 . 3 . 1 . 3 3 2 . 2 3 2 . . . . . . 1 . . 1 . . Piercing Weapon 27 | . . . . . . . . . . . . . . . 1 . . . . . . . . . . . 1 3 . 3 8 . 3 1 . 1 4 2 Special Melee Weapon . | . . . . . . . . . . . . . . . . . . . . . . . . . . . . . . . . . . . . . . . Unidentified Prototypes 62 | . . . 4 2 4 . 3 . . 2 . . . 1 . . . 4 . 1 . 1 . . . 2 . 1 . 5 6 . 4 2 6 1 1 12 Parts Lost 6 | . . . . . 2 . . . 2 . . . . . . . . . . . . 1 . . . . . . . 1 . . . . . . . . Power 1 | . . . . . . . . . . . . . . . . . . . . . . 1 . . . . . . . . . . . . . . . . Propulsion . | . . . . . . . . . . . . . . . . . . . . . . . . . . . . . . . . . . . . . . . Utility 3 | . . . . . 1 . . . 1 . . . . . . . . . . . . . . . . . . . . 1 . . . . . . . . Weapon 2 | . . . . . 1 . . . 1 . . . . . . . . . . . . . . . . . . . . . . . . . . . . . Highest Loss Streak 2 | . . . . . 1 . . . 2 . . . . . . . . . . . . 1 . . . . . . . 1 . . . . . . . . Average Slot Usage (%) 92 | . 99 100 87 80 88 100 99 100 89 94 99 99 100 100 79 77 77 76 77 77 83 93 100 99 99 100 99 99 100 99 99 99 99 99 99 99 99 98 Reactor 5 | . . . 5 9 7 7 6 6 5 6 5 5 5 5 5 5 5 5 5 5 5 4 5 5 5 5 5 4 5 5 4 4 4 4 4 4 4 4 Treads 5 | . 25 23 22 18 11 . . . . . . . . . 10 11 11 11 11 11 1 . . . . . . . . . . . . . . . . . Hover 13 | . . . . . 11 28 26 26 23 25 25 23 23 22 1 . . . . . 9 16 22 21 22 21 21 21 21 20 19 19 18 18 17 16 16 15 Device 20 | . 11 11 10 16 19 28 26 20 14 18 25 22 29 27 12 11 14 16 16 16 26 31 33 32 27 23 26 25 26 28 19 18 26 27 22 13 25 31 Processor 13 | . 23 23 22 18 13 7 7 13 13 7 . 3 5 9 11 11 11 11 11 11 11 11 11 11 11 13 15 15 15 15 19 19 16 9 12 16 16 13 Hackware 2 | . . . . . . . . . . 2 8 6 . 1 5 5 1 . . . . . . . 5 8 4 . . . 3 4 1 8 8 12 3 . Protection 1 | . . . . . . . 3 6 6 6 5 5 5 3 4 5 5 5 5 5 . . . . . . . 5 4 . . . . . . . . . Energy Gun 3 | . 9 8 3 8 17 26 . . 9 12 12 1 . . . . . 1 5 3 . . . . . . . . . . . . . . . 4 4 7 Ballistic Gun 18 | . 14 16 9 . 1 1 26 26 15 12 8 21 23 22 20 22 22 22 22 22 22 21 22 22 22 21 21 21 21 24 27 28 27 22 21 20 22 22 Special Weapon 1 | . . . . . . . . . . . 4 4 . 4 6 . 4 2 . . . . . . 1 4 4 4 . . . 2 . 3 4 4 2 . Naked Turns . | . . . . . . . . . . . . . . . . . . . . . . . . . . . . . . . . . . . . . . . Heaviest Build 103 | 10 12 16 73 77 77 33 30 31 42 48 48 48 49 46 84 84 88 90 90 90 88 54 52 56 56 57 67 68 68 57 59 59 73 62 68 68 80 103 Greatest Support 155 | 40 40 40 40 40 60 44 49 49 49 49 49 56 56 56 145 145 145 155 155 155 155 86 77 77 74 78 78 78 78 78 110 78 110 110 110 78 78 102 Greatest Overweight (x) 25 | . . . 1 25 1 . . . 1 1 . . . . . . . . . . 1 . . . 1 . . . . 1 1 . . . . . 1 1 Average Overweight (x) . | . . . . 3 . . . . . . . . . . . . . . . . . . . . . . . . . . . . . . . . . . Largest Inventory Capacity 10 | . 1 3 3 3 3 6 6 7 7 7 7 7 7 7 7 7 7 7 7 8 8 8 8 8 8 8 8 8 8 8 8 8 8 8 10 10 10 10 Average Capacity 6 | . . 2 3 3 3 4 6 6 7 7 7 7 7 7 7 7 7 7 7 7 8 8 8 8 8 8 8 8 8 8 8 8 8 8 8 10 10 10 Most Carried 10 | . 1 3 3 3 3 6 6 7 7 7 7 7 7 7 7 7 7 7 7 8 8 8 8 8 8 8 8 8 8 8 8 8 8 8 10 10 10 10 Average Carried 6 | . . 2 2 2 2 4 5 6 7 6 6 6 5 6 6 7 6 7 7 7 7 7 8 7 7 7 7 7 7 7 7 7 7 7 7 9 9 9 Final Capacity 10 | . 1 3 3 3 3 6 6 7 7 7 7 7 7 7 7 7 7 7 7 8 8 8 8 8 8 8 8 8 8 8 8 8 8 8 10 10 10 10 Final Carried 10 | . 1 3 3 3 3 6 6 7 7 7 7 6 7 6 7 7 7 7 7 8 8 8 8 7 8 8 8 8 8 8 8 8 8 8 10 10 9 10 Class Distribution -------------------- 26% | Machinist-Scout 12% | Scavenger-Skirmisher 11% | Hauler-Scout 8% | Hacker-Scout 7% | Commander-Scout 6% | Skirmisher 6% | Hauler-Assassin 4% | Scavenger-Scout 4% | Mutant Dominant Class ---------------- Mutant | -10/Materials Mutant | -10/Mines Skirmisher | -10/Exiles Scavenger-Skirmisher | -9/Mines Scavenger-Skirmisher | -8/Materials Scout | -8/Garrison Scavenger-Scout | -8/Materials Scavenger-Scout | -7/Factory Hauler-Skirmisher | -7/Waste Hauler-Scout | -7/Factory Commander-Scout | -7/Garrison Hauler-Scout | -7/Factory Hauler-Scout | -7/Garrison Hauler-Scout | -6/Factory Scavenger-Mutant | -6/Waste Hauler-Assassin | -6/Factory Scavenger-Skirmisher | -6/Extension Scavenger-Mutant | -6/Cetus Scavenger-Skirmisher | -6/Archives Scavenger-Skirmisher | -6/Hub_04(d) Scavenger-Scout | -6/Garrison Hacker-Scout | -5/Factory Hacker-Scout | -5/Waste Hacker-Scout | -5/Factory Hacker-Scout | -5/Garrison Hacker-Scout | -4/Factory Machinist-Scout | -4/Garrison Machinist-Scout | -4/Factory Machinist-Scout | -4/Garrison Machinist-Scout | -3/Research Machinist-Scout | -3/Testing Commander-Scout | -3/Garrison Machinist-Scout | -2/Research Machinist-Scout | -2/Quarantine Machinist-Scout | -2/Section 7 Commander-Scout | -2/Garrison Machinist-Scout | -1/Access Machinist-Executioner | -1/Command Resources | -11 -10 -10 -10 -9 -8 -8 -8 -7 -7 -7 -7 -7 -7 -6 -6 -6 -6 -6 -6 -6 -6 -5 -5 -5 -5 -4 -4 -4 -4 -3 -3 -3 -2 -2 -2 -2 -1 -1 ----------- Run | Scr Mat Min Exi Min Mat Gar Mat Fac Was Fac Gar Fac Gar Fac Was Fac Ext Cet Arc Hub Gar Fac Was Fac Gar Fac Gar Fac Gar Res Tes Gar Res Qua Sec Gar Acc Com Matter Collected 34636 | 278 188 66 284 50 313 68 637 . 272 610 660 2218 798 572 278 1227 627 130 32 2500 307 1030 . 1271 469 1644 887 1297 536 2026 1821 760 1419 452 1826 1058 1925 4100 Remotely 4394 | 10 116 . . . . . 590 . . . . . . 114 . . . . . 1232 262 636 . 1116 276 . 42 . . . . . . . . . . . Salvage Created 68124 | 89 428 135 309 434 2357 972 1428 151 442 939 607 2866 1190 974 1404 3782 1721 . . 2845 330 1809 . 2134 659 2247 1077 2669 1675 5583 2300 1765 6691 461 2821 1506 2647 8677 Parts 3946 | 4 43 18 29 21 100 61 84 7 4 71 38 203 61 39 25 173 89 . 5 191 52 104 . 123 39 130 99 185 110 287 132 106 304 51 163 92 239 464 Haulers Intercepted 19 | . 1 . . . 5 . 2 . . . . 3 . . . 2 . . . 1 . . . . . 1 . 1 . 2 . . . . 1 . . . Recyclers Shooed 21 | . 1 1 . 2 1 . 3 . . . . 1 . . . 2 1 . . . . 1 . 4 . 2 . 1 . . . . . . 1 . . . Parts Field Recycled . | . . . . . . . . . . . . . . . . . . . . . . . . . . . . . . . . . . . . . . . Retrieved Matter . | . . . . . . . . . . . . . . . . . . . . . . . . . . . . . . . . . . . . . . . Parts Self-Destructed . | . . . . . . . . . . . . . . . . . . . . . . . . . . . . . . . . . . . . . . . Prevented . | . . . . . . . . . . . . . . . . . . . . . . . . . . . . . . . . . . . . . . . Kills | -11 -10 -10 -10 -9 -8 -8 -8 -7 -7 -7 -7 -7 -7 -6 -6 -6 -6 -6 -6 -6 -6 -5 -5 -5 -5 -4 -4 -4 -4 -3 -3 -3 -2 -2 -2 -2 -1 -1 ------- Run | Scr Mat Min Exi Min Mat Gar Mat Fac Was Fac Gar Fac Gar Fac Was Fac Ext Cet Arc Hub Gar Fac Was Fac Gar Fac Gar Fac Gar Res Tes Gar Res Qua Sec Gar Acc Com Combat Hostiles Destroyed 904 | . 12 5 8 1 35 28 22 1 1 26 23 54 37 19 3 39 23 . 1 43 20 22 . 35 19 17 17 29 27 49 25 28 53 7 32 23 44 76 Melee 10 | . . . . . 2 . . . . . . . . . . . . . . . . 2 . . . . . . . . . . . . 3 3 . . Guns 780 | . 11 1 . . 19 18 19 1 1 18 18 47 22 15 3 39 23 . 1 43 11 18 . 31 7 13 17 29 27 46 25 28 53 7 29 20 44 76 Cannons 17 | . . . 8 1 8 . . . . . . . . . . . . . . . . . . . . . . . . . . . . . . . . . AOE 92 | . 1 4 . . 4 8 3 . . 8 5 7 15 4 . . . . . . 9 2 . 4 12 3 . . . 3 . . . . . . . . Classes Destroyed 29 | 1 7 1 3 1 4 . . . 1 1 1 . . . . . . . . 1 1 . . . . . 1 . . 1 . . 1 . 1 . . 3 Worker 89 | . 1 2 . . 2 . 1 1 . 3 . 13 . 3 . 5 . . . 17 . 6 . 7 . 4 . 3 . 6 1 . 12 . 1 . 1 . Builder 61 | . 1 . . 1 2 . . . . . . 4 . 1 . 7 . . . 9 . 4 . 2 . 6 . 2 . 4 . . 13 1 . . 4 . Tunneler 11 | . . 2 . 2 . . . . . 1 . 1 . . . . . . . . . . . . . 3 . . . 1 . . 1 . . . . . Hauler 19 | . 1 . . . 5 . 2 . . . . 3 . . . 2 . . . 1 . . . . . 1 . 1 . 2 . . . . 1 . . . Recycler 60 | 1 . . . 5 3 . 2 . . 2 . 6 . . . 8 4 . . 2 . 4 . 3 . 4 . 2 . 6 2 . 3 . 2 . 1 . Carrier 1 | . . . . . . . . . . . . . . . . . . . . . . . . . . . . . . . . . 1 . . . . . Mechanic 2 | . . . . . 1 . . . . . . . . 1 . . . . . . . . . . . . . . . . . . . . . . . . Operator 13 | . 2 . . . 1 . . 1 . . . . . . . 1 . . . . . 1 . . . 2 . 1 . 1 1 . 1 1 . . . . Turret 2 | . . . 2 . . . . . . . . . . . . . . . . . . . . . . . . . . . . . . . . . . . Watcher 74 | . 2 . . . 5 . 3 1 . 4 . 6 1 2 . 5 . . . 4 . 4 . 4 . 3 1 7 . 2 2 1 6 2 5 2 2 . Swarmer 158 | . 6 4 . . 4 14 3 . . 2 3 7 11 3 . . . . . 2 6 2 . 5 13 . . 3 7 7 2 8 . 5 9 9 20 3 Saboteur 2 | . . . . . . . . . . . . . . . . . . . . . . . . . . . . . . 1 . . . . . 1 . . Grunt 337 | . 6 1 . . 17 11 7 . . 16 12 30 20 12 . 20 6 . . 10 8 10 . 14 2 9 10 8 14 27 13 10 18 . 4 2 5 15 Brawler 22 | . . . . . 2 1 1 . . . 3 . 2 2 . 1 . . . . . 1 . 1 1 1 . 2 . 1 . 1 2 . . . . . Duelist 14 | . . . . . 2 . 1 . . . . . . . . 2 1 . . . . . . . . . . . . 1 . 2 3 . . . 1 1 Protector 7 | . . . . . . . . . . . . . . . . . . . . 4 1 . . . . . . . . . . . 2 . . . . . Sentry 126 | . . . . 1 8 2 9 1 . 5 3 8 2 1 . 9 13 . 1 8 3 5 . 3 1 . 3 8 2 4 . 4 10 . 6 1 2 3 Demolisher 1 | . . . . . . . . . . . . . . . . . . . . . 1 . . . . . . . . . . . . . . . . . Specialist 10 | . . . . . . . . . . . . . . . . . . . . . . . . . . . 3 . . . . . 1 . . 6 . . Hunter 72 | . . . . . 2 . 1 . . 1 . 4 2 . . 2 1 . . 2 . 2 . 5 1 4 1 5 4 4 6 2 12 . 4 . 5 2 Programmer 68 | . . . . . . . . . . 2 1 5 . 1 . 5 . . . 4 1 2 . 7 1 3 . 3 . 4 2 . 5 2 3 3 8 6 Behemoth 10 | . . . . . . . . . . . 1 . . . . . 2 . . 1 . . . . . . . . . . . 1 . . . 1 3 1 Compactor 4 | . . . . . . . . . 1 . . . . . 3 . . . . . . . . . . . . . . . . . . . . . . . S7 Guard 4 | . . . . . . . . . . . . . . . . . . . . . . . . . . . . . . . . . . . 4 . . . M Guard 2 | . . . . . . . . . . . . . . . . . . . . . . . . . . . . . . . . . . . . . . 2 Enhanced Q-Series 26 | . . . . . . . . . . . . . . . . . . . . . . . . . . . . . . . . . . . . . . 26 Lightning 12 | . . . . . . . . . . . . . . . . . . . . 12 . . . . . . . . . . . . . . . . . . Combat Programmer 2 | . . . . . . . . . . . . . . . . . . . . . . . . . . . . . . . . . . . . . . 2 Executioner 2 | . . . . . . . . . . . . . . . . . . . . . . . . . . . . . . . . . . . 2 . . . Protovariant X 1 | . . . . . . . . . . . . . . . . . . . . . . . . . . . . . . . 1 . . . . . . . Protovariant H 1 | . . . . . . . . . . . . . . . . . . . . . . . . . . . . . . . 1 . . . . . . . Zionite 8 | . . . 8 . . . . . . . . . . . . . . . . . . . . . . . . . . . . . . . . . . . Assembled 7 | . . . 7 . . . . . . . . . . . . . . . . . . . . . . . . . . . . . . . . . . . Thug 5 | . . . . . . . . . . . . . . . . . . . . . . . . . . . . . . . . . . . . . . 5 Savage 1 | . . . . . . . . . . . . . . . . . . . . . . . . . . . . . . . . . . . . . . 1 Butcher 1 | . . . . . . . . . . . . . . . . . . . . . . . . . . . . . . . . . . . . . . 1 Guerrilla 3 | . . . . . . . . . . . . . . . . . . . . 1 . . . . . . . . . . . . . . . . . 2 Wizard 1 | . . . . . . . . . . . . . . . . . . . . . . . . . . . . . . . . . . . . . . 1 Fireman 1 | . . . . . . . . . . . . . . . . . . . . . . . . . . . . . . . . . . . . . . 1 Mutant 6 | . . . . . . . . . . . . . . . . . . . . . . . . . . . . . . . . . . . . . . 6 Best Kill Streak 19 | 1 5 5 10 5 11 6 4 4 1 7 6 11 15 11 1 9 4 . 1 13 9 11 . 12 15 4 5 9 16 19 8 13 18 6 6 6 14 10 Combat Bots Only 16 | . 5 2 7 1 7 6 4 1 1 6 6 6 15 8 1 5 4 . 1 8 9 6 . 9 15 3 5 5 16 9 6 13 9 5 5 6 14 10 Max Kills in Single Turn 5 | 1 1 5 1 1 2 3 2 1 1 2 2 4 3 4 1 2 1 . 1 3 3 3 . 3 5 3 1 2 2 3 2 2 3 2 2 3 3 3 Gunslinging 2 | . . . . . 1 1 1 . . 1 1 1 1 . . . . . . 1 . . . 1 . . . 1 1 1 1 1 1 1 . 2 1 2 Exploded 5 | . 1 2 . . 1 3 2 . . 2 2 3 3 2 . . . . . . 3 2 . 2 5 2 . . . 3 . . . . . . . . Melee 1 | . . . . . 1 . . . . . . . . . . . . . . . . 1 . . . . . . . . . . . . 1 1 . . Uniques/NPCs Destroyed 5 | . . . 4 . . . . . . . . . . . . . . . . . . . . . . . . . . . . . . . . . . 1 EX-BIN (-10/Exiles) 8R-AWN (-10/Exiles) EX-HEX (-10/Exiles) EX-DEC (-10/Exiles) MAIN.C Shell (-1/Command) Combat | -11 -10 -10 -10 -9 -8 -8 -8 -7 -7 -7 -7 -7 -7 -6 -6 -6 -6 -6 -6 -6 -6 -5 -5 -5 -5 -4 -4 -4 -4 -3 -3 -3 -2 -2 -2 -2 -1 -1 -------- Run | Scr Mat Min Exi Min Mat Gar Mat Fac Was Fac Gar Fac Gar Fac Was Fac Ext Cet Arc Hub Gar Fac Was Fac Gar Fac Gar Fac Gar Res Tes Gar Res Qua Sec Gar Acc Com Damage Taken 33721 | . 436 271 800 . 1135 915 746 31 66 1031 834 1373 949 606 . 1965 1124 143 184 1815 945 1656 . 2129 690 951 728 1066 1410 2004 796 678 1480 85 1253 1082 1026 1318 Core 24767 | . 352 217 643 . 911 711 578 20 47 704 611 949 685 476 . 1127 643 64 131 965 741 1309 . 1690 547 765 582 669 924 1585 637 537 1164 69 984 878 820 1032 Absorbed by Shields 9559 | . . . . . 260 33 275 12 22 310 312 540 345 225 . . 313 51 64 733 185 558 . 524 247 210 217 387 527 714 279 237 542 30 451 22 378 556 Reduced by Siege Mode 42 | . . . . . . . . . . . . . . . . 5 2 . . 35 . . . . . . . . . . . . . . . . . . Redirected to Core 21899 | . 263 172 560 . 742 668 483 20 17 639 493 845 610 414 . 1035 584 64 97 894 670 1230 . 1519 508 649 470 605 761 1408 554 486 1096 54 923 707 677 982 Core Remaining (%) 94 | 100 . . . 86 . . 89 . . . . . 100 . . . . . . . 100 . . . 99 . . . 100 . . 85 . . . 81 . 100 Volleys Fired 2994 | 3 44 24 62 27 92 44 79 7 6 74 63 211 75 64 36 146 73 8 8 253 35 91 . 110 35 117 95 127 61 168 81 81 146 22 105 59 90 172 Largest 8 | 2 2 2 1 1 4 4 4 4 4 4 4 5 4 4 4 4 4 4 4 4 4 4 . 4 4 4 4 4 4 5 6 6 6 5 6 6 8 8 Hottest 370 | 40 63 46 75 40 200 200 88 96 96 222 212 212 100 100 95 100 100 240 100 240 100 240 . 100 100 100 100 100 100 125 150 150 150 300 225 225 370 370 Shots Fired 11786 | 6 56 25 128 28 247 142 307 28 24 248 149 701 264 220 81 548 277 23 32 985 116 343 . 414 89 429 334 485 244 759 425 325 866 90 458 210 488 1192 Gun 11391 | 6 56 23 62 27 217 137 304 28 24 239 130 657 252 209 58 541 273 23 32 984 109 337 . 405 74 416 320 478 244 750 415 310 865 86 446 188 474 1192 Cannon 104 | . . . 66 1 30 . . . . . . . . . . . . . . . . . . . . . . . . . . . . 1 6 . . . Launcher 69 | . . 2 . . . 5 3 . . 9 8 5 12 4 . 5 1 . . . 5 . . 2 6 . . . . 2 . . . . . . . . Special 222 | . . . . . . . . . . . 11 39 . 7 23 2 3 . . 1 2 6 . 7 9 13 14 7 . 7 10 15 1 3 6 22 14 . Kinetic 10432 | 6 22 3 70 1 41 . 304 28 24 114 50 649 252 209 58 541 273 20 32 983 109 336 . 405 74 416 319 478 244 750 415 310 865 86 447 151 396 951 Thermal 256 | . . . 24 . . . . . . 125 80 8 . . 10 . . 3 . 1 . 1 . . . . 1 . . . . . . 1 2 . . . Explosive 69 | . . 2 . . . 5 3 . . 9 8 5 12 4 . 5 1 . . . 5 . . 2 6 . . . . 2 . . . . . . . . Electromagnetic 458 | . 34 20 34 27 206 137 . . . . . . . . . . . . . . . . . . . . . . . . . . . . . . . . Slashing 359 | . . . . . . . . . . . . . . . . . . . . . . . . . . . . . . . . . . . 3 37 78 241 Robot Hit Streak 66 | 3 12 8 18 12 34 18 15 5 8 17 20 15 15 32 38 43 62 8 9 64 17 17 . 25 27 30 35 19 22 32 24 23 25 19 35 19 26 66 Robot Miss Streak 7 | 1 4 4 2 1 3 6 5 3 5 4 2 4 4 3 1 4 1 2 1 4 4 4 . 5 1 7 3 5 3 4 5 3 4 4 3 5 4 5 Penetration Max 2 | . . . . . . . 1 . . 1 1 . . . . . . . . . . . . . . . . . . . . . . . 1 1 1 2 Secondary Targets 281 | . 1 . . . 4 6 2 . . 3 5 12 9 6 2 8 3 . . 25 3 6 . 12 1 7 5 8 13 23 10 12 18 3 8 13 19 34 Max Gunslinging Chain 2 | . 1 . . . 1 1 1 . . 1 1 1 2 1 1 1 1 . . 1 1 1 . 2 1 1 1 1 1 1 2 2 2 2 1 2 2 2 Autonomous 98 | . . . 66 1 31 . . . . . . . . . . . . . . . . . . . . . . . . . . . . . . . . . Shots Hit Robots 8492 | 4 45 18 91 25 199 82 195 15 19 156 105 456 193 151 76 411 231 14 27 807 92 240 . 282 73 287 239 327 181 546 293 213 588 61 322 147 346 935 Core Hits 3376 | 2 23 11 25 12 84 46 82 8 6 68 55 156 87 58 15 166 84 8 10 263 55 105 . 122 34 125 84 133 79 201 87 78 212 20 118 63 161 430 Critical Hits 314 | . 1 . 1 . 3 1 3 2 . 1 . 1 . 3 2 7 1 . . 8 . 2 . 2 . 2 1 4 7 3 27 23 46 . 4 4 34 121 Critical Kills 85 | . . . . . 1 . 2 1 . . . . . 1 . 2 . . . 1 . . . 1 . . . 2 3 2 12 12 20 . 1 3 7 14 Critical Parts Destroyed 185 | . 1 . . . 2 1 1 1 . 1 . 1 . 2 . 5 1 . . 7 . 2 . 1 . 2 1 2 4 1 15 9 24 . 2 . 22 77 Melee Attacks 427 | . . . . . 10 . . . . . . 2 23 2 . 2 . 1 . 5 17 20 . 11 12 3 5 9 18 19 31 13 28 12 68 70 42 4 Impact . | . . . . . . . . . . . . . . . . . . . . . . . . . . . . . . . . . . . . . . . Slashing 108 | . . . . . 10 . . . . . . 2 23 2 . 2 . 1 . 5 17 20 . 11 12 3 . . . . . . . . . . . . Piercing 319 | . . . . . . . . . . . . . . . . . . . . . . . . . . . 5 9 18 19 31 13 28 12 68 70 42 4 Sneak Attacks 38 | . . . . . 1 . . . . . . . . . . . . . . 1 . 7 . 3 . . . . 1 3 . 1 9 . 4 6 2 . Combat Hostiles 4 | . . . . . . . . . . . . . . . . . . . . . . 1 . . . . . . 1 . . . . . 1 1 . . Follow-up Attacks . | . . . . . . . . . . . . . . . . . . . . . . . . . . . . . . . . . . . . . . . Damage Inflicted 180767 | 47 677 588 5154 439 5596 2087 1993 127 383 4479 3297 7367 5274 3594 1047 7348 3867 271 403 12227 2286 5831 . 7332 2622 6185 4082 5947 3594 10737 4997 3789 12897 1210 7098 3943 8613 23339 Guns 151063 | 47 608 212 457 318 2463 1463 1772 127 383 3432 2040 6734 2623 2450 942 6986 3867 271 403 12018 1473 4036 . 5272 1054 4992 4082 5873 3415 9798 4997 3576 11345 1210 5970 2866 8149 23339 Cannons 6986 | . . . 4697 84 2205 . . . . . . . . . . . . . . . . . . . . . . . . . . . . . . . . . Explosions 14356 | . 69 376 . 37 586 624 221 . . 1047 1257 633 1924 1144 . 362 . . . 20 731 724 . 1651 1136 1193 . 74 . 547 . . . . . . . . Melee 8257 | . . . . . 342 . . . . . . . 727 . . . . . . 189 82 1071 . 409 432 . . . 179 392 . 213 1552 . 1128 1077 464 . Ramming . | . . . . . . . . . . . . . . . . . . . . . . . . . . . . . . . . . . . . . . . Kinetic 139648 | 47 200 19 4761 84 2308 . 1772 127 383 1433 699 6581 2623 2450 942 6986 3867 271 403 12018 1473 4036 . 5272 1054 4992 4082 5873 3415 9798 4997 3576 11345 1210 5880 1858 5946 16867 Thermal 5936 | . 69 . . 37 586 93 . . . 1999 1341 153 . . 105 302 . . . . . 142 . 646 . 463 . . . . . . . . . . . . Explosive 11025 | . . 376 . . . 531 221 . . 1047 1257 633 1924 1144 . 60 . . . . 731 339 . 1005 1136 . . 74 . 547 . . . . . . . . Electromagnetic 6128 | . 408 193 393 318 2360 1463 . . . . . . . . . . . . . 20 . 243 . . . 730 . . . . . . . . . . . . Impact . | . . . . . . . . . . . . . . . . . . . . . . . . . . . . . . . . . . . . . . . Slashing 13025 | . . . . . 342 . . . . . . . 727 . . . . . . 189 82 1071 . 409 432 . . . . . . . . . 90 1008 2203 6472 Piercing 5005 | . . . . . . . . . . . . . . . . . . . . . . . . . . . . . 179 392 . 213 1552 . 1128 1077 464 . Highest Corruption 8 | . . . . . 2 2 2 . . 3 3 5 5 . . . . . . 7 8 3 4 6 6 3 3 4 4 2 3 3 4 4 4 4 . . Average Corruption 3 | . . . . . 2 2 2 . . 2 3 3 5 . . . . . . 5 7 2 3 4 6 1 3 3 4 1 2 3 4 4 4 4 . . Corruption Purged . | . . . . . . . . . . . . . . . . . . . . . . . . . . . . . . . . . . . . . . . Effects 647 | . . . . . 1 2 15 . . 23 27 83 30 . . . . . . 51 45 6 . 43 29 3 41 43 14 12 28 26 9 17 55 44 . . Message Errors 86 | . . . . . 1 1 5 . . 3 10 10 1 . . . . . . 3 6 . . 3 4 . 8 5 1 1 1 4 2 5 6 6 . . Matter Fused 114 | . . . . . . . . . . 7 4 14 6 . . . . . . 4 12 3 . 9 7 . 4 10 4 . 3 4 1 3 10 9 . . Heat Flow Errors 52 | . . . . . . . 1 . . 2 1 9 1 . . . . . . 1 4 1 . 5 1 . 2 5 1 . 5 5 . 1 4 3 . . Energy Discharges 61 | . . . . . . 1 1 . . 2 5 11 2 . . . . . . 1 3 1 . 5 . . 4 5 2 1 . 1 . 3 7 6 . . Parts Rejected 4 | . . . . . . . . . . . . 2 . . . . . . . . . . . 1 . . . . . . . . 1 . . . . . Data Loss (minor) 49 | . . . . . . . 1 . . 2 1 6 3 . . . . . . . 7 . . 1 2 1 3 2 . 3 2 1 2 . 7 5 . . Data Loss (major) 9 | . . . . . . . . . . . . . 2 . . . . . . 2 2 . . . 3 . . . . . . . . . . . . . Misfires 7 | . . . . . . . . . . . . . 1 . . . . . . 1 2 . . 3 . . . . . . . . . . . . . . Targeting Errors 231 | . . . . . . . 7 . . 7 5 28 13 . . . . . . 36 7 1 . 14 9 2 19 14 6 3 16 10 3 5 15 11 . . Weapon Failures 34 | . . . . . . . . . . . 1 3 1 . . . . . . 3 2 . . 2 3 . 1 2 . 4 1 1 . . 6 4 . . Overload Shots 4 | . . . . . . . . . . . . . . . . . . 2 . 1 . 1 . . . . . . . . . . . . . . . . Overflow Damage 3119 | . . . 675 . 411 96 . . . 31 31 4 133 59 . 137 . . . 104 6 88 . 216 46 . . 28 69 49 . . 273 . 416 245 2 . Projectiles 1034 | . . . 675 . 359 . . . . . . . . . . . . . . . . . . . . . . . . . . . . . . . . . Explosions 759 | . . . . . 11 96 . . . 31 31 4 128 59 . 137 . . . . 6 24 . 145 38 . . 28 . 21 . . . . . . . . Melee 1326 | . . . . . 41 . . . . . . . 5 . . . . . . 104 . 64 . 71 8 . . . 69 28 . . 273 . 416 245 2 . Knockbacks 29 | . . . 25 . 4 . . . . . . . . . . . . . . . . . . . . . . . . . . . . . . . . . Impact . | . . . . . . . . . . . . . . . . . . . . . . . . . . . . . . . . . . . . . . . Kinetic 29 | . . . 25 . 4 . . . . . . . . . . . . . . . . . . . . . . . . . . . . . . . . . Secondary . | . . . . . . . . . . . . . . . . . . . . . . . . . . . . . . . . . . . . . . . Self-Inflicted Damage 1047 | . 21 29 . . 82 92 . . . . 25 28 87 . . . . . . 26 74 235 . 250 . . . 98 . . . . . . . . . . Shots 25 | . 1 1 . . 2 2 . . . . 1 1 3 . . . . . . 3 2 3 . 5 . . . 1 . . . . . . . . . . Rammed . | . . . . . . . . . . . . . . . . . . . . . . . . . . . . . . . . . . . . . . . Targets Rammed . | . . . . . . . . . . . . . . . . . . . . . . . . . . . . . . . . . . . . . . . Kicked . | . . . . . . . . . . . . . . . . . . . . . . . . . . . . . . . . . . . . . . . Crushed . | . . . . . . . . . . . . . . . . . . . . . . . . . . . . . . . . . . . . . . . Highest Temperature 466 | . 60 27 240 . 252 220 190 3 . 441 256 238 86 80 . 110 96 252 49 160 221 146 . 177 123 60 219 221 142 152 344 344 180 208 86 113 466 418 Average Temperature 65 | . 28 15 92 . 58 56 18 2 . 100 65 44 40 39 . 45 44 110 43 46 52 39 . 45 36 30 37 38 36 58 115 99 71 76 29 56 115 157 Received Heat Transfer 6359 | . 135 102 20 . 408 333 237 16 . 266 228 422 252 195 . 459 255 18 6 272 242 322 . 393 153 111 145 180 287 256 15 81 132 . 84 114 30 190 Effects 14 | . . . . . . . . . . 10 . . . . . . . . . . . . . . . . . . . . . 1 . . . . . 3 Shutdowns 3 | . . . . . . . . . . 1 . . . . . . . . . . . . . . . . . . . . . . . . . . . 2 Energy Bleed 1 | . . . . . . . . . . 1 . . . . . . . . . . . . . . . . . . . . . . . . . . . . Interference 9 | . . . . . . . . . . 8 . . . . . . . . . . . . . . . . . . . . . 1 . . . . . . Short Circuit 1 | . . . . . . . . . . . . . . . . . . . . . . . . . . . . . . . . . . . . . . 1 Siege Activations 10 | . . . . . . . . . . . . . . . . 1 3 . . 6 . . . . . . . . . . . . . . . . . . Total Turns 308 | . . . . . . . . . . . . . . . . 10 28 . . 270 . . . . . . . . . . . . . . . . . . Longest Duration 94 | . . . . . . . . . . . . . . . . 10 13 . . 94 . . . . . . . . . . . . . . . . . . Robots Corrupted 10 | . . . 3 . 3 3 . . . . . . . . . . . . . . . . . . . 1 . . . . . . . . . . . . Combat Hostiles 5 | . . . . . 2 2 . . . . . . . . . . . . . . . . . . . 1 . . . . . . . . . . . . Parts Fried 53 | . 4 . 5 1 19 10 . . . . . 4 . . . . . . . . . . . . . 10 . . . . . . . . . . . . Impact Corruptions . | . . . . . . . . . . . . . . . . . . . . . . . . . . . . . . . . . . . . . . . Robots Melted . | . . . . . . . . . . . . . . . . . . . . . . . . . . . . . . . . . . . . . . . Combat Hostiles . | . . . . . . . . . . . . . . . . . . . . . . . . . . . . . . . . . . . . . . . Parts Melted 18 | . . . . . 2 . . . . 3 5 . . . . 2 2 . . . . . . . 1 . . . . . . . 1 . . . . 2 Heat Transferred 8155 | . 150 . . 50 650 150 . . . 3293 2183 259 . . 370 250 . . . . . 100 . 350 . 350 . . . . . . . . . . . . Parts Sabotaged . | . . . . . . . . . . . . . . . . . . . . . . . . . . . . . . . . . . . . . . . Parts Stolen . | . . . . . . . . . . . . . . . . . . . . . . . . . . . . . . . . . . . . . . . Parts Stripped . | . . . . . . . . . . . . . . . . . . . . . . . . . . . . . . . . . . . . . . . Power Chain Reactions 15 | . 2 . . 1 9 2 . . . . . 1 . . . . . . . . . . . . . . . . . . . . . . . . . . Missiles Intercepted 2 | . . . . . . . . . . . . . . . . . . . . . . . . . . . . . . . . . . . . . . 2 Alert | -11 -10 -10 -10 -9 -8 -8 -8 -7 -7 -7 -7 -7 -7 -6 -6 -6 -6 -6 -6 -6 -6 -5 -5 -5 -5 -4 -4 -4 -4 -3 -3 -3 -2 -2 -2 -2 -1 -1 ------- Run | Scr Mat Min Exi Min Mat Gar Mat Fac Was Fac Gar Fac Gar Fac Was Fac Ext Cet Arc Hub Gar Fac Was Fac Gar Fac Gar Fac Gar Res Tes Gar Res Qua Sec Gar Acc Com Peak Influence 1489 | 5 270 254 . 35 813 1286 916 425 162 658 1475 815 904 764 104 370 338 463 311 726 1175 650 62 1003 919 491 672 628 903 829 277 776 1489 900 407 1180 802 1017 Initial 813 | . 3 46 . . . 332 626 281 148 76 460 774 . 474 92 . 81 188 185 108 508 616 62 43 330 482 117 349 226 507 171 87 436 813 50 303 708 417 Average 380 | 1 128 94 . 6 322 952 725 333 122 258 1103 175 513 453 78 115 152 358 284 272 894 265 62 383 787 171 435 209 637 258 114 591 1085 317 221 912 487 773 Maximum Alert Level 4 | . 1 1 . . 3 4 3 2 . 2 4 3 3 3 . 1 1 2 1 3 4 2 . 3 3 2 2 2 3 3 1 3 4 3 2 4 3 3 Low Security (%) 44 | 100 84 96 . 100 23 . . . 100 35 . 73 20 22 100 80 73 5 9 48 . 43 100 33 . 59 6 54 . 51 85 10 . 56 38 . 7 34 Level 1 18 | . 15 3 . . 47 3 . 87 . 42 . 14 21 6 . 19 26 53 90 25 . 32 . 24 9 37 38 32 19 25 14 13 . 12 57 1 14 . Level 2 15 | . . . . . 19 23 49 12 . 21 22 4 16 54 . . . 41 . 22 21 23 . 25 6 2 54 13 31 14 . 18 9 15 3 19 68 3 Level 3 15 | . . . . . 10 33 50 . . . 17 7 41 15 . . . . . 3 61 . . 17 83 . . . 48 9 . 58 39 15 . 51 9 61 Level 4 5 | . . . . . . 39 . . . . 60 . . . . . . . . . 16 . . . . . . . . . . . 50 . . 27 . . Level 5 . | . . . . . . . . . . . . . . . . . . . . . . . . . . . . . . . . . . . . . . . High Security . | . . . . . . . . . . . . . . . . . . . . . . . . . . . . . . . . . . . . . . . Max Security . | . . . . . . . . . . . . . . . . . . . . . . . . . . . . . . . . . . . . . . . Squads Dispatched 141 | . 3 . . . 3 . 1 2 . 7 . 24 . 4 . 11 2 . . 10 . 5 . 7 . 8 . 6 . 10 8 . 16 1 6 . 4 3 Investigation 27 | . 1 . . . . . . . . 1 . 7 . 1 . 3 1 . . 1 . 1 . 1 . 1 . 1 . 3 . . 4 . . . . 1 Extermination 28 | . . . . . . . . . . 2 . 3 . . . 3 . . . 4 . 2 . 2 . 1 . 1 . 1 1 . 2 1 3 . 1 1 Reinforcement 47 | . 2 . . . 2 . 1 2 . 3 . 7 . . . 2 1 . . 5 . 2 . . . 2 . 1 . 5 3 . 4 . 3 . 2 . Assault 12 | . . . . . 1 . . . . . . . . 1 . . . . . . . . . 1 . 1 . . . 1 1 . 5 . . . . 1 Garrison 27 | . . . . . . . . . . 1 . 7 . 2 . 3 . . . . . . . 3 . 3 . 3 . . 3 . 1 . . . 1 . Intercept . | . . . . . . . . . . . . . . . . . . . . . . . . . . . . . . . . . . . . . . . Construction Impeded 10 | . . . . . 1 . . . . . . 2 . . . . . . . 1 . . . . . . . . . 2 . . 2 . 1 . 1 . Haulers Reinforced 14 | . . . . . . . . . . 2 . 2 . . . 1 . . . 2 . . . . . 1 . . . 3 . . 1 . 1 . 1 . Alert ID Control Effect 6 | . . . . . . . . . . . . . . . . . . . . . . . . . . . . . . . . . . . . 1 5 . Stealth | -11 -10 -10 -10 -9 -8 -8 -8 -7 -7 -7 -7 -7 -7 -6 -6 -6 -6 -6 -6 -6 -6 -5 -5 -5 -5 -4 -4 -4 -4 -3 -3 -3 -2 -2 -2 -2 -1 -1 --------- Run | Scr Mat Min Exi Min Mat Gar Mat Fac Was Fac Gar Fac Gar Fac Was Fac Ext Cet Arc Hub Gar Fac Was Fac Gar Fac Gar Fac Gar Res Tes Gar Res Qua Sec Gar Acc Com Distress Signals 53 | . . . . . 1 . 1 . . 1 . 4 . . . 2 2 1 . 5 . 2 . 2 . 3 1 3 . 1 3 . 9 1 2 . 3 6 Communications Jammed 14 | . . . . . . . 14 . . . . . . . . . . . . . . . . . . . . . . . . . . . . . . . Distress Signals 14 | . . . . . . . 14 . . . . . . . . . . . . . . . . . . . . . . . . . . . . . . . Times Spotted 1367 | . 17 16 16 . 44 28 30 5 6 42 38 71 39 32 5 53 42 9 4 60 36 37 6 50 31 40 39 44 28 68 32 47 94 14 41 47 63 93 Peak Tracking Total 13 | . 3 5 9 . 6 6 4 1 5 4 6 6 9 7 2 6 6 5 2 10 13 7 6 10 7 6 6 4 9 13 7 7 10 5 6 7 12 11 Tactical Retreats 63 | . . . 2 . . . . . 1 2 2 1 2 1 . 1 1 . . 3 9 2 . 3 1 4 1 1 1 3 1 2 4 . 3 2 3 7 Traps | -11 -10 -10 -10 -9 -8 -8 -8 -7 -7 -7 -7 -7 -7 -6 -6 -6 -6 -6 -6 -6 -6 -5 -5 -5 -5 -4 -4 -4 -4 -3 -3 -3 -2 -2 -2 -2 -1 -1 ------- Run | Scr Mat Min Exi Min Mat Gar Mat Fac Was Fac Gar Fac Gar Fac Was Fac Ext Cet Arc Hub Gar Fac Was Fac Gar Fac Gar Fac Gar Res Tes Gar Res Qua Sec Gar Acc Com Traps Triggered 100 | . 1 . . . 1 4 1 1 . 5 10 4 3 1 . 4 . . . 5 6 1 . 2 9 1 6 2 6 3 2 10 2 1 . 9 . . Indirectly 4 | . . . . . . . . . . . . . . . . . . . . 3 . . . . . 1 . . . . . . . . . . . . Trap Hack Attempts . | . . . . . . . . . . . . . . . . . . . . . . . . . . . . . . . . . . . . . . . Triggered . | . . . . . . . . . . . . . . . . . . . . . . . . . . . . . . . . . . . . . . . Disarmed . | . . . . . . . . . . . . . . . . . . . . . . . . . . . . . . . . . . . . . . . Reprogrammed 48 | . . . . . 4 . . . . . . . . . . . . . . . . 3 . 20 . 6 . 6 . . 4 . . . 4 . 1 . Reused 3 | . . . . . . . . . . . . . . . . . . . . . . . . . . 1 . . . . 1 . . . 1 . . . Traps Extracted . | . . . . . . . . . . . . . . . . . . . . . . . . . . . . . . . . . . . . . . . Installed . | . . . . . . . . . . . . . . . . . . . . . . . . . . . . . . . . . . . . . . . Triggered 4 | . . . . . . . . . . . . . . . . . . . . . . . . . . 1 . . . . 1 . . . 1 . 1 . Machines | -11 -10 -10 -10 -9 -8 -8 -8 -7 -7 -7 -7 -7 -7 -6 -6 -6 -6 -6 -6 -6 -6 -5 -5 -5 -5 -4 -4 -4 -4 -3 -3 -3 -2 -2 -2 -2 -1 -1 ---------- Run | Scr Mat Min Exi Min Mat Gar Mat Fac Was Fac Gar Fac Gar Fac Was Fac Ext Cet Arc Hub Gar Fac Was Fac Gar Fac Gar Fac Gar Res Tes Gar Res Qua Sec Gar Acc Com Machines Disabled 182 | . . . 8 . 6 4 4 1 . . 6 3 8 . . 14 2 1 2 6 5 15 . 19 6 11 5 3 6 . 10 5 2 5 8 10 3 4 Max in Single Turn 8 | . . . 2 . 1 1 1 1 . . 1 1 1 . . 8 1 1 1 4 1 4 . 5 1 4 1 1 1 . 1 1 1 1 1 2 1 1 Garrison Access 17 | . . . . . . . . . . 1 . . . . . 3 . . . . . . . 2 . 3 . . . 1 . . 3 1 . . 3 . Garrison Relay 39 | . . . . . . 4 . . . . 5 . 4 . . . . . . . 4 . . . 4 . 4 . 4 . . 4 . . . 6 . . Phase Generator 1 | . . . . . . . . . . . . . . . . . . . . . . . . . . . . . . . . . . . . 1 . . Network Hub 3 | . . . . . . . . . . . . . . . . . . . . 3 . . . . . . . . . . . . . . . . . . Energy Cycler 2 | . . . . . . . . . . . . . . . . . 1 . . . . . . . . . . . . . . . . . . . 1 . Machines Sabotaged . | . . . . . . . . . . . . . . . . . . . . . . . . . . . . . . . . . . . . . . . Garrisons Compromised . | . . . . . . . . . . . . . . . . . . . . . . . . . . . . . . . . . . . . . . . Overloaded Fab Kills 1 | . . . . . . . . . . . . 1 . . . . . . . . . . . . . . . . . . . . . . . . . . Fab Network Shutdowns 1 | . . . . . . . . . . . . . . . . . . . . . . . . . . . . . . . . . . . . . 1 . Hacking | -11 -10 -10 -10 -9 -8 -8 -8 -7 -7 -7 -7 -7 -7 -6 -6 -6 -6 -6 -6 -6 -6 -5 -5 -5 -5 -4 -4 -4 -4 -3 -3 -3 -2 -2 -2 -2 -1 -1 --------- Run | Scr Mat Min Exi Min Mat Gar Mat Fac Was Fac Gar Fac Gar Fac Was Fac Ext Cet Arc Hub Gar Fac Was Fac Gar Fac Gar Fac Gar Res Tes Gar Res Qua Sec Gar Acc Com Machines Accessed 243 | . 5 . 4 1 10 . 11 2 . 12 . 24 . 3 . 13 8 4 . 7 . 12 . 16 . 16 . 10 . 11 9 . 15 13 15 . 15 7 Terminals 180 | . 4 . . . 9 . 10 1 . 9 . 15 . 2 . 10 7 4 . 6 . 8 . 10 . 10 . 7 . 9 7 . 11 10 13 . 11 7 Fabricators 14 | . . . . . . . . . . . . 2 . . . . . . . . . 2 . 3 . 3 . 1 . . 1 . 1 . . . 1 . Repair Stations 2 | . 1 . . . . . 1 . . . . . . . . . . . . . . . . . . . . . . . . . . . . . . . Recycling Units 6 | . . . . . . . . . . . . 4 . . . . 1 . . . . 1 . . . . . . . . . . . . . . . . Scanalyzers 4 | . . . . . . . . . . . . 1 . . . . . . . . . . . . . . . . . . . . . 2 1 . . . Garrison Access 32 | . . . . . 1 . . 1 . 3 . 2 . 1 . 3 . . . 1 . 1 . 3 . 3 . 2 . 2 1 . 3 1 1 . 3 . Total Hacks 1074 | . 11 . 49 1 30 . 32 7 . 35 . 63 . 7 . 40 14 13 . 19 . 80 . 117 . 89 . 72 . 64 61 . 75 75 43 . 54 23 Successful 570 | . 6 . 49 1 15 . 14 5 . 22 . 32 . 4 . 23 10 4 . 14 . 41 . 64 . 49 . 27 . 22 34 . 33 33 25 . 33 10 Failed 502 | . 5 . . . 15 . 18 2 . 13 . 31 . 3 . 17 4 9 . 5 . 39 . 52 . 40 . 45 . 42 26 . 42 42 18 . 21 13 Catastrophic 79 | . . . . . . . 8 . . 1 . 2 . 1 . . . . . 1 . 6 . 6 . 8 . 6 . 4 4 . 15 7 4 . 3 3 Database Lockouts 2 | . . . . . . . . . . . . . . . . . . . . . . . . 1 . . . . . . 1 . . . . . . . Manual 586 | . 6 . 1 . 22 . 19 1 . 16 . 38 . 4 . 14 4 1 . 10 . 46 . 79 . 52 . 38 . 38 44 . 47 53 27 . 16 10 Terminals 835 | . 10 . . . 29 . 30 5 . 29 . 47 . 5 . 34 13 13 . 18 . 55 . 93 . 50 . 63 . 60 52 . 58 70 38 . 40 23 Fabricators 100 | . . . . . . . . . . . . 4 . . . . . . . . . 14 . 17 . 33 . 6 . . 5 . 10 . . . 11 . Repair Stations 3 | . 1 . . . . . 2 . . . . . . . . . . . . . . . . . . . . . . . . . . . . . . . Recycling Units 13 | . . . . . . . . . . . . 4 . . . . 1 . . . . 8 . . . . . . . . . . . . . . . . Scanalyzers 8 | . . . . . . . . . . . . 3 . . . . . . . . . . . . . . . . . . . . . 3 2 . . . Garrison Access 65 | . . . . . 1 . . 2 . 6 . 5 . 2 . 6 . . . 1 . 3 . 7 . 6 . 3 . 4 4 . 7 2 3 . 3 . Terminal Hacks 322 | . 2 . 49 1 10 . 9 2 . 9 . 17 . . . 13 7 4 . 8 . 19 . 31 . 14 . 16 . 14 22 . 13 21 14 . 20 7 Record 63 | . . . 49 . . . . . . . . . . . . 3 . 3 . . . . . . . . . 1 . . 1 . . 6 . . . . Part Schematic 19 | . . . . . 1 . . . . . . 3 . . . . . . . . . 3 . 4 . 2 . . . . 1 . 3 2 . . . . Robot Analysis 12 | . 1 . . . . . . . . 1 . . . . . . . . . . . . . 1 . . . 3 . 3 1 . 1 1 . . . . Prototype ID Bank 31 | . . . . . . . . . . 1 . 4 . . . 4 1 . . 2 . 1 . 4 . . . 3 . 1 7 . . . . . 2 1 Open Door 16 | . . . . 1 . . . . . . . . . . . . 4 1 . . . . . . . . . . . . 1 . . . 5 . 3 1 Level Access Points 3 | . . . . . . . . . . . . . . . . . . . . . . . . . . . . . . 1 . . . . . . 1 1 Branch Access Points 10 | . . . . . 1 . 1 1 . . . . . . . . . . . . . . . 1 . 2 . . . 1 1 . 1 . . . 1 . Emergency Access Points 1 | . . . . . . . . . . . . . . . . . . . . . . . . . . . . . . . . . . . 1 . . . Machine Index 2 | . . . . . . . . . . . . . . . . . . . . . . . . . . . . . . . 1 . . 1 . . . . Terminal Index 8 | . . . . . 1 . . . . . . . . . . . . . . . . . . 1 . 1 . 1 . 1 1 . 1 . . . 1 . Fabricator Index 5 | . . . . . . . . . . . . . . . . . . . . . . 1 . . . 1 . 1 . . 1 . . . . . 1 . Recycling Unit Index 2 | . . . . . . . . . . . . . . . . . . . . . . 2 . . . . . . . . . . . . . . . . Garrison Index 11 | . . . . . . . . 1 . 1 . 1 . . . . . . . . . 1 . 1 . 1 . 1 . . 1 . 1 . 1 . 1 . Alert Level 1 | . . . . . . . . . . . . . . . . . . . . . . . . . . . . . . . . . . 1 . . . . Unreport Threat 54 | . . . . . 2 . 4 . . 2 . 2 . . . 2 1 . . 4 . 4 . 4 . 3 . 3 . 3 4 . 3 6 2 . 5 . Locate Traps 43 | . 1 . . . 2 . 2 . . 2 . 5 . . . 3 1 . . 1 . 4 . 6 . 1 . 1 . 4 1 . 1 2 2 . 1 3 Reprogram Traps 12 | . . . . . 1 . . . . . . . . . . . . . . . . 1 . 4 . 2 . 1 . . 1 . . . 1 . 1 . Transport Status 2 | . . . . . 1 . . . . . . . . . . . . . . . . . . . . . . 1 . . . . . . . . . . Recall Investigation 1 | . . . . . . . . . . . . . . . . . . . . . . . . 1 . . . . . . . . . . . . . . Recall Extermination 5 | . . . . . . . . . . 1 . . . . . . . . . . . . . . . . . . . . . . 1 1 2 . . . Recall Reinforcements 1 | . . . . . . . . . . . . . . . . . . . . . . . . 1 . . . . . . . . . . . . . . Recall Assault 1 | . . . . . . . . . . . . . . . . . . . . . . . . . . . . . . . . . 1 . . . . . Hauler Manifests 10 | . . . . . 1 . 1 . . . . 1 . . . 1 . . . 1 . 1 . 1 . 1 . . . . . . . 1 . . 1 . Registered Components 2 | . . . . . . . . . . 1 . . . . . . . . . . . . . . . . . . . . . . . . . . 1 . Registered Prototypes 2 | . . . . . . . . . . . . 1 . . . . . . . . . . . . . . . . . . . . . . . . 1 . Zone Layout 4 | . . . . . . . 1 . . . . . . . . . . . . . . 1 . 2 . . . . . . . . . . . . . . Disengage Seal 1 | . . . . . . . . . . . . . . . . . . . . . . . . . . . . . . . . . . . . . . 1 Fabricator Hacks 44 | . . . . . . . . . . . . 2 . . . . . . . . . 5 . 8 . 14 . 3 . . 2 . 6 . . . 4 . Network Status 3 | . . . . . . . . . . . . . . . . . . . . . . . . . . 3 . . . . . . . . . . . . Load Schematic 18 | . . . . . . . . . . . . 1 . . . . . . . . . 1 . 4 . 5 . 1 . . 1 . 3 . . . 2 . Build 23 | . . . . . . . . . . . . 1 . . . . . . . . . 4 . 4 . 6 . 2 . . 1 . 3 . . . 2 . Repair Station Hacks 1 | . . . . . . . 1 . . . . . . . . . . . . . . . . . . . . . . . . . . . . . . . Scan Component 1 | . . . . . . . 1 . . . . . . . . . . . . . . . . . . . . . . . . . . . . . . . Recycling Unit Hacks 5 | . . . . . . . . . . . . . . . . . . . . . . 5 . . . . . . . . . . . . . . . . Report Inventory 2 | . . . . . . . . . . . . . . . . . . . . . . 2 . . . . . . . . . . . . . . . . Retrieve Matter 2 | . . . . . . . . . . . . . . . . . . . . . . 2 . . . . . . . . . . . . . . . . Retrieve Components 1 | . . . . . . . . . . . . . . . . . . . . . . 1 . . . . . . . . . . . . . . . . Scanalyzer 4 | . . . . . . . . . . . . 1 . . . . . . . . . . . . . . . . . . . . . 2 1 . . . Insert Component 4 | . . . . . . . . . . . . 1 . . . . . . . . . . . . . . . . . . . . . 2 1 . . . Garrison Access Hacks 50 | . . . . . 1 . . 2 . 5 . 3 . 1 . 6 . . . 1 . 1 . 6 . 5 . 3 . 3 2 . 5 2 1 . 3 . Unlock Access 11 | . . . . . 1 . . 1 . 1 . 1 . . . . . . . 1 . . . 2 . 1 . 1 . . 1 . . . 1 . . . Seal Access 14 | . . . . . . . . . . 1 . . . . . 3 . . . . . . . 1 . 2 . . . 1 . . 2 1 . . 3 . Coupler Status 25 | . . . . . . . . 1 . 3 . 2 . 1 . 3 . . . . . 1 . 3 . 2 . 2 . 2 1 . 3 1 . . . . Unauthorized Hacks 144 | . 4 . . . 4 . 4 1 . 8 . 9 . 3 . 4 3 . . 5 . 11 . 19 . 16 . 5 . 5 8 . 9 8 9 . 6 3 Terminals 105 | . 3 . . . 4 . 4 1 . 7 . 2 . 2 . 4 2 . . 5 . 6 . 16 . 8 . 5 . 4 6 . 6 7 6 . 4 3 Track 22 | . . . . . 1 . . . . 2 . . . . . 1 . . . 1 . 1 . 3 . 1 . . . . 2 . 1 3 4 . 1 1 Assimilate 13 | . . . . . . . . . . 1 . . . 1 . 1 . . . . . . . 1 . 1 . . . 2 2 . 2 2 . . . . Botnet 35 | . 2 . . . 2 . 3 1 . 2 . 1 . 1 . 1 1 . . 4 . 2 . 2 . 2 . 2 . 1 1 . 2 1 1 . 2 1 Detonate 15 | . . . . . . . . . . . . . . . . . . . . . . 2 . 9 . 2 . 2 . . . . . . . . . . Disrupt 1 | . . . . . . . . . . . . . . . . . . . . . . . . . . 1 . . . . . . . . . . . . Operators 19 | . 1 . . . 1 . 1 . . 2 . 1 . . . 1 1 . . . . 1 . 1 . 1 . 1 . 1 1 . 1 1 1 . 1 1 Fabricators 18 | . . . . . . . . . . . . 1 . . . . . . . . . 4 . 2 . 7 . . . . . . 2 . . . 2 . Report 3 | . . . . . . . . . . . . . . . . . . . . . . 1 . 1 . 1 . . . . . . . . . . . . Prioritize 6 | . . . . . . . . . . . . . . . . . . . . . . 1 . . . 3 . . . . . . 1 . . . 1 . Siphon 8 | . . . . . . . . . . . . . . . . . . . . . . 2 . 1 . 3 . . . . . . 1 . . . 1 . Overload 1 | . . . . . . . . . . . . 1 . . . . . . . . . . . . . . . . . . . . . . . . . . Repair Stations 1 | . 1 . . . . . . . . . . . . . . . . . . . . . . . . . . . . . . . . . . . . . Mechanics 1 | . 1 . . . . . . . . . . . . . . . . . . . . . . . . . . . . . . . . . . . . . Recycling Units 5 | . . . . . . . . . . . . 4 . . . . 1 . . . . . . . . . . . . . . . . . . . . . Tunnel 5 | . . . . . . . . . . . . 4 . . . . 1 . . . . . . . . . . . . . . . . . . . . . Scanalyzers 2 | . . . . . . . . . . . . . . . . . . . . . . . . . . . . . . . . . . 1 1 . . . Researchers 2 | . . . . . . . . . . . . . . . . . . . . . . . . . . . . . . . . . . 1 1 . . . Garrison Access 13 | . . . . . . . . . . 1 . 2 . 1 . . . . . . . 1 . 1 . 1 . . . 1 2 . 1 . 2 . . . Restock 1 | . . . . . . . . . . . . 1 . . . . . . . . . . . . . . . . . . . . . . . . . . Reprogram 5 | . . . . . . . . . . . . 1 . . . . . . . . . . . . . 1 . . . . 2 . . . 1 . . . Watchers 1 | . . . . . . . . . . . . . . . . . . . . . . . . . . . . . . . . . . . 1 . . . Eject 6 | . . . . . . . . . . 1 . . . 1 . . . . . . . 1 . 1 . . . . . 1 . . 1 . . . . . Data Cores Recovered 8 | . . . . . . . . . . . . . . . . 1 . . . . . 1 . . . 2 . 1 . . 1 . 1 1 . . . . Used 3 | . . . . . . . . . . . . . . . . . . . . . . . . . . . . 1 . . 1 . 1 . . . . . Hacking Detections 177 | . 4 . . . 6 . 11 2 . 10 . 17 . 2 . 11 5 2 . 5 . 10 . 14 . 12 . 8 . 9 7 . 12 7 9 . 8 6 Full Trace Events 9 | . . . . . . . . . . . . . . . . 3 . . . . . . . . . 1 . . . 1 . . 3 . . . . 1 Feedback Events . | . . . . . . . . . . . . . . . . . . . . . . . . . . . . . . . . . . . . . . . Feedback Blocked . | . . . . . . . . . . . . . . . . . . . . . . . . . . . . . . . . . . . . . . . Robot Schematics Acquired . | . . . . . . . . . . . . . . . . . . . . . . . . . . . . . . . . . . . . . . . Robots Built 6 | . . . . . . . . . . . . . . . . . . . . . . 6 . . . . . . . . . . . . . . . . Matter 441 | . . . . . . . . . . . . . . . . . . . . . . 441 . . . . . . . . . . . . . . . . Time 134 | . . . . . . . . . . . . . . . . . . . . . . 134 . . . . . . . . . . . . . . . . Total Robot Build Rating 24 | . . . . . . . . . . . . . . . . . . . . . . 24 . . . . . . . . . . . . . . . . Part Schematics Acquired 19 | . . . . . 1 . . . . . . 3 . . . . . . . . . 3 . 4 . 2 . . . . 1 . 3 2 . . . . Parts Built 18 | . . . . . . . . . . . . 2 . . . . . . . . . 1 . 2 . 5 . 2 . . 1 . 3 . . . 2 . Matter 4591 | . . . . . . . . . . . . 168 . . . . . . . . . 252 . 465 . 1237 . 438 . . 318 . 1017 . . . 696 . Time 1189 | . . . . . . . . . . . . 42 . . . . . . . . . 134 . 120 . 371 . 116 . . 84 . 217 . . . 105 . Total Part Build Rating 105 | . . . . . . . . . . . . 8 . . . . . . . . . 4 . 9 . 29 . 6 . . 6 . 26 . . . 17 . Parts Repaired . | . . . . . . . . . . . . . . . . . . . . . . . . . . . . . . . . . . . . . . . Time . | . . . . . . . . . . . . . . . . . . . . . . . . . . . . . . . . . . . . . . . Parts Recycled . | . . . . . . . . . . . . . . . . . . . . . . . . . . . . . . . . . . . . . . . Recycled Matter . | . . . . . . . . . . . . . . . . . . . . . . . . . . . . . . . . . . . . . . . Retrieved Matter . | . . . . . . . . . . . . . . . . . . . . . . . . . . . . . . . . . . . . . . . Retrieved Components . | . . . . . . . . . . . . . . . . . . . . . . . . . . . . . . . . . . . . . . . Parts Scanalyzed 1 | . . . . . . . . . . . . 1 . . . . . . . . . . . . . . . . . . . . . . . . . . Part Schematics Acquired . | . . . . . . . . . . . . . . . . . . . . . . . . . . . . . . . . . . . . . . . Parts Damaged . | . . . . . . . . . . . . . . . . . . . . . . . . . . . . . . . . . . . . . . . Bothacking | -11 -10 -10 -10 -9 -8 -8 -8 -7 -7 -7 -7 -7 -7 -6 -6 -6 -6 -6 -6 -6 -6 -5 -5 -5 -5 -4 -4 -4 -4 -3 -3 -3 -2 -2 -2 -2 -1 -1 ------------ Run | Scr Mat Min Exi Min Mat Gar Mat Fac Was Fac Gar Fac Gar Fac Was Fac Ext Cet Arc Hub Gar Fac Was Fac Gar Fac Gar Fac Gar Res Tes Gar Res Qua Sec Gar Acc Com Used RIF Installer 9 | . . . . . . 1 . . . . 1 . 1 . . . . . . . 1 . . . 1 . 1 . 1 . . 1 . . . 1 . . Hotswap 1 | . . . . . . . . . . . . . 1 . . . . . . . . . . . . . . . . . . . . . . . . . Threat Obfuscator 1 | . . . . . . . . . . . 1 . . . . . . . . . . . . . . . . . . . . . . . . . . . Zone Cloak 1 | . . . . . . . . . . . . . . . . . . . . . 1 . . . . . . . . . . . . . . . . . Robot Detection 1 | . . . . . . . . . . . . . . . . . . . . . . . . . . . . . 1 . . . . . . . . . Watcher Feeds 1 | . . . . . . . . . . . . . . . . . . . . . . . . . 1 . . . . . . . . . . . . . Alert ID Control 1 | . . . . . . . . . . . . . . . . . . . . . . . . . . . . . . . . . . . . 1 . . Autoassimilate 2 | . . . . . . . . . . . . . . . . . . . . . . . . . . . 1 . . . . 1 . . . . . . Robots Hacked 129 | . . . . . . . . . . . 9 11 . 3 6 1 3 . . 1 2 2 . 1 9 11 10 1 . 2 4 13 1 3 6 21 9 . Non-combat 21 | . . . . . . . . . . . . 6 . 2 . 1 1 . . . . 2 . 1 . 4 . 1 . 2 . . . . . . 1 . Combat 108 | . . . . . . . . . . . 9 5 . 1 6 . 2 . . 1 2 . . . 9 7 10 . . . 4 13 1 3 6 21 8 . Autoassimilated 5 | . . . . . . . . . . . . . . . . . . . . . . . . . . . . . . . . . . . . 3 2 . Robot Hacks Applied 182 | . . . . . . . . . . . 9 26 . 7 13 2 3 . . 1 2 6 . 5 9 13 10 5 . 6 9 14 1 3 6 18 14 . parse_system 17 | . . . . . . . . . . . . 4 . 1 6 . 2 . . 1 . . . . . . . 1 . . 1 . . . 1 . . . find_chute 2 | . . . . . . . . . . . . . . 1 . . . . . . . 1 . . . . . . . . . . . . . . . . check_alert 1 | . . . . . . . . . . . . 1 . . . . . . . . . . . . . . . . . . . . . . . . . . purge_threat 49 | . . . . . . . . . . . . 16 . 4 . 2 1 . . . . 4 . 3 . 4 . 4 . 6 . . . . . . 5 . reprogram_traps 1 | . . . . . . . . . . . . . . . . . . . . . . . . . . . . . . . . . . . . . 1 . block_reporting 8 | . . . . . . . . . . . . 2 . 1 . . . . . . . 1 . 1 . 2 . . . . . . . . . . 1 . summon_haulers 2 | . . . . . . . . . . . . . . . . . . . . . . . . 1 . . . . . . . . . . . . 1 . find_scanalyzer 1 | . . . . . . . . . . . . . . . . . . . . . . . . . . . . . . . . . . . 1 . . . disable_scanner 1 | . . . . . . . . . . . . . . . . . . . . . . . . . . . . . . . 1 . . . . . . . locate_prototypes 9 | . . . . . . . . . . . . . . . . . . . . . . . . . . . . . . . 2 . . 3 4 . . . report_analyses 5 | . . . . . . . . . . . . . . . . . . . . . . . . . . . . . . . 5 . . . . . . . ignore_targets 7 | . . . . . . . . . . . . . . . 7 . . . . . . . . . . . . . . . . . . . . . . . broadcast_data 1 | . . . . . . . . . . . . . . . . . . . . . . . . . . . . . . . . 1 . . . . . . overload_power 1 | . . . . . . . . . . . . . . . . . . . . . . . . . . . . . . . . 1 . . . . . . amplify_resonance 1 | . . . . . . . . . . . 1 . . . . . . . . . . . . . . . . . . . . . . . . . . . disable_weapons 1 | . . . . . . . . . . . . . . . . . . . . . . . . . . . . . . . . . . . . 1 . . go_dormant 1 | . . . . . . . . . . . . . . . . . . . . . . . . . . . . . . . . . . . . . 1 . overwrite_iff 5 | . . . . . . . . . . . . . . . . . . . . . . . . . . . 2 . . . . . . . . 2 1 . streamctrl_high 2 | . . . . . . . . . . . . . . . . . . . . . . . . . . . . . . . . . . . . 2 . . formatsys_high 67 | . . . . . . . . . . . 8 3 . . . . . . . . 2 . . . 9 7 8 . . . . 12 1 . . 13 4 . Relay Couplers Released 84 | . . . . . . 6 . . . 1 10 3 5 1 . . . . . . 8 2 . 2 8 . 7 . 7 2 . 7 2 . 2 11 . . Ejected 10 | . . . . . . . . . . 1 . . . 1 . . . . . . . 2 . 2 . . . . . 2 . . 2 . . . . . Machine Destruction 69 | . . . . . . 6 . . . . 10 . 5 . . . . . . . 8 . . . 8 . 7 . 7 . . 7 . . . 11 . . Programmers 5 | . . . . . . . . . . . . 3 . . . . . . . . . . . . . . . . . . . . . . 2 . . . Attached 34 | . . . . . . . . . . 1 3 3 1 1 . . . . . . 1 1 . 1 3 1 2 1 . 1 1 4 1 1 . 4 3 . Robots Rewired 62 | . . . . . . . . 1 . . . . . . . . 19 . . . . . . . . . . . . . . 10 . . . 32 . . Allies Hacked 5 | . . . . . . . . . . . . . . . . . 1 . . . . . . . . . . . . . 2 . . . . 2 . . Hacks Repelled . | . . . . . . . . . . . . . . . . . . . . . . . . . . . . . . . . . . . . . . . Allies | -11 -10 -10 -10 -9 -8 -8 -8 -7 -7 -7 -7 -7 -7 -6 -6 -6 -6 -6 -6 -6 -6 -5 -5 -5 -5 -4 -4 -4 -4 -3 -3 -3 -2 -2 -2 -2 -1 -1 -------- Run | Scr Mat Min Exi Min Mat Gar Mat Fac Was Fac Gar Fac Gar Fac Was Fac Ext Cet Arc Hub Gar Fac Was Fac Gar Fac Gar Fac Gar Res Tes Gar Res Qua Sec Gar Acc Com Total Allies 207 | . . 4 . 1 . . . 1 19 . 8 7 . 1 . 4 25 . . 2 2 6 . 1 9 9 10 3 . 2 6 22 3 2 1 52 7 . Largest Group 45 | . . 3 . 1 . . . 1 18 6 8 11 . 1 . 3 12 9 5 5 2 3 . 1 8 5 4 3 . 1 3 19 18 1 1 41 45 . Highest-Rated Group 2142 | . . 47 . 31 . . . 32 456 198 141 267 . 26 . 93 464 357 150 150 64 90 . 26 232 147 147 138 . 26 94 1091 976 44 90 1868 2142 . Highest-Rated Ally 156 | . . 31 . 31 . . . 32 35 35 29 32 . 26 . 31 156 140 37 37 32 30 . 26 81 49 49 47 . 26 47 115 147 44 90 69 69 . Total Orders 93 | . . . . 2 . . . . . 1 2 . . . . 10 . . . 2 . 21 . 2 . 6 . . . 2 2 1 9 5 . 11 . 17 STAY 28 | . . . . . . . . . . . 1 . . . . 4 . . . . . 6 . 1 . . . . . 1 1 1 . 1 . 9 . 3 ROAM 2 | . . . . . . . . . . . . . . . . . . . . . . . . . . . . . . . . . . 2 . . . . FOLLOW 8 | . . . . . . . . . . . 1 . . . . . . . . . . . . 1 . . . . . 1 1 . . 2 . 2 . . EXPLORE 46 | . . . . 1 . . . . . . . . . . . 6 . . . 2 . 13 . . . 5 . . . . . . 9 . . . . 10 RETURN 9 | . . . . 1 . . . . . 1 . . . . . . . . . . . 2 . . . 1 . . . . . . . . . . . 4 Ally Attacks 1089 | . . 34 . . . . . 4 80 24 23 40 . . . 52 122 53 10 44 8 22 . . 34 72 66 29 . . 14 26 113 . . 16 203 . Total Damage 29493 | . . 391 . . . . . 150 3441 807 303 890 . . . 694 2328 1150 149 723 349 588 . . 736 1517 1865 649 . . 217 1418 4148 . . 495 6485 . Kills 180 | . . 10 . . . . . . 14 7 3 8 . . . 4 17 12 3 7 2 7 . . 3 12 13 3 . . 1 3 19 . . 2 30 . Allies Corrupted 21 | . . . 1 . . . . . . . . 3 . . . . . . . . . . . . . . . . . . 1 . 1 1 . . 13 1 Allies Melted 2 | . . . . . . . . . . . . . . . . . . . . 1 . . . . . . . . . . . . . . . . . 1 Turrets Deployed 1 | . . . 1 . . . . . . . . . . . . . . . . . . . . . . . . . . . . . . . . . . . Intel | -11 -10 -10 -10 -9 -8 -8 -8 -7 -7 -7 -7 -7 -7 -6 -6 -6 -6 -6 -6 -6 -6 -5 -5 -5 -5 -4 -4 -4 -4 -3 -3 -3 -2 -2 -2 -2 -1 -1 ------- Run | Scr Mat Min Exi Min Mat Gar Mat Fac Was Fac Gar Fac Gar Fac Was Fac Ext Cet Arc Hub Gar Fac Was Fac Gar Fac Gar Fac Gar Res Tes Gar Res Qua Sec Gar Acc Com Robot Analysis Total 12 | . 1 . . . . . . . . 1 . . . . . . . . . . . . . 1 . . . 3 . 3 1 . 1 1 . . . . Derelict Logs Recovered 2 | . . 1 . 1 . . . . . . . . . . . . . . . . . . . . . . . . . . . . . . . . . . Drone Launches 116 | . . . . 20 . . . . . 3 . . . . . 12 . . . 2 . 24 . . . 5 . . . . . . 38 . . . . 12 Drone Recoveries 68 | . . . . 20 . . . . . 3 . . . . . 4 . . . . . 12 . . . 5 . . . . . . 18 . . . . 6 Exploration | -11 -10 -10 -10 -9 -8 -8 -8 -7 -7 -7 -7 -7 -7 -6 -6 -6 -6 -6 -6 -6 -6 -5 -5 -5 -5 -4 -4 -4 -4 -3 -3 -3 -2 -2 -2 -2 -1 -1 ------------- Run | Scr Mat Min Exi Min Mat Gar Mat Fac Was Fac Gar Fac Gar Fac Was Fac Ext Cet Arc Hub Gar Fac Was Fac Gar Fac Gar Fac Gar Res Tes Gar Res Qua Sec Gar Acc Com Turns Passed 43552 | 110 950 959 2499 2620 1331 679 853 134 285 1282 1007 2538 682 553 529 2743 1564 396 126 1779 1070 1386 104 1078 617 1351 910 1159 514 1401 966 1005 1440 655 1576 1617 1495 1589 Spaces Moved 42190 | 54 487 544 1330 716 960 883 1059 217 288 1604 1115 3669 707 786 282 1360 701 218 58 665 919 1240 131 1211 641 1866 1118 1620 558 1674 1226 1264 1583 1121 2230 2041 2470 1574 Core 92 | 4 . . . 88 . . . . . . . . . . . . . . . . . . . . . . . . . . . . . . . . . . Treads 6699 | 50 487 544 1330 628 341 . . . . . . . . . 246 1360 701 218 58 665 71 . . . . . . . . . . . . . . . . . Legs 2 | . . . . . . . . . . . . . . . . . . . . . . . . . . . . . . . 2 . . . . . . . Wheels . | . . . . . . . . . . . . . . . . . . . . . . . . . . . . . . . . . . . . . . . Hover 35397 | . . . . . 619 883 1059 217 288 1604 1115 3669 707 786 36 . . . . . 848 1240 131 1211 641 1866 1118 1620 558 1674 1224 1264 1583 1121 2230 2041 2470 1574 Flight . | . . . . . . . . . . . . . . . . . . . . . . . . . . . . . . . . . . . . . . . Fastest Speed 22 | 50 160 160 160 180 48 48 48 48 48 48 48 45 45 45 45 160 160 160 160 160 76 53 53 48 48 38 38 38 38 38 38 38 22 22 22 38 38 26 Average Speed 66 | 151 160 160 166 317 92 48 48 48 67 48 48 45 45 45 145 160 160 160 160 160 82 65 53 48 49 40 38 38 38 38 38 38 37 37 37 38 38 61 Slowest Speed 1300 | 160 160 160 180 1300 180 48 48 48 112 112 48 48 45 45 160 160 160 160 160 160 160 76 53 53 106 48 38 38 38 96 100 38 38 38 38 38 88 88 Overloaded Moves 243 | . . . . . . . . . . . . . . . . . . . . . . . . . . . . . . . . . 4 24 26 . . 189 Propulsion Burnouts . | . . . . . . . . . . . . . . . . . . . . . . . . . . . . . . . . . . . . . . . Robots Hopped . | . . . . . . . . . . . . . . . . . . . . . . . . . . . . . . . . . . . . . . . Cave-ins Triggered . | . . . . . . . . . . . . . . . . . . . . . . . . . . . . . . . . . . . . . . . Time Travels 1 | . . . 1 . . . . . . . . . . . . . . . . . . . . . . . . . . . . . . . . . . . Exploration Rate (%) 72 | 4 78 98 95 103 89 87 97 10 90 57 80 93 92 24 79 46 88 74 80 85 89 45 88 41 83 43 78 37 84 44 91 95 74 92 90 99 53 60 Regions Visited 38 Branch Regions 11 Pre-discovered Areas 7 | . . 1 1 . . . . . . . . 4 . . . . 1 . . . . . . . . . . . . . . . . . . . . . Known Exits Taken 22 | . 1 1 1 1 1 . 1 . . 1 . 1 . . . 1 1 1 1 1 . . . 1 . 1 . 1 . 1 1 . 1 1 1 . 1 . Unknown Exits Taken 1 | 1 . . . . . . . . . . . . . . . . . . . . . . . . . . . . . . . . . . . . . . Scrap Searched 3 | . . 1 . 2 . . . . . . . . . . . . . . . . . . . . . . . . . . . . . . . . . . Spaces Dug 204 | . . . . . . . . . . . . 2 . 2 . 8 . 1 . 4 . 4 . 6 . 3 1 6 . 13 19 . 15 25 36 27 30 2 Terrain Destroyed 1800 | . 4 26 39 6 36 29 36 . . 70 71 63 44 35 . 48 19 1 . 515 45 75 . 233 67 16 1 15 . 59 19 . 15 25 36 113 30 9 Melee 174 | . . . . . . . . . . . . 2 . 2 . 2 . . . 3 . 4 . 6 . 3 1 6 . 13 19 . 15 7 32 27 30 2 Projectile 48 | . . . 5 . 2 . 1 . . 1 4 1 . . . . . 1 . 1 . . . 1 . . . . . . . . . 18 4 2 . 7 AOE 1578 | . 4 26 34 6 34 29 35 . . 69 67 60 44 33 . 46 19 . . 511 45 71 . 226 67 13 . 9 . 46 . . . . . 84 . . Terrain Rammed . | . . . . . . . . . . . . . . . . . . . . . . . . . . . . . . . . . . . . . . . Walls Destroyed . | . . . . . . . . . . . . . . . . . . . . . . . . . . . . . . . . . . . . . . . Machines Disabled . | . . . . . . . . . . . . . . . . . . . . . . . . . . . . . . . . . . . . . . . Actions | -11 -10 -10 -10 -9 -8 -8 -8 -7 -7 -7 -7 -7 -7 -6 -6 -6 -6 -6 -6 -6 -6 -5 -5 -5 -5 -4 -4 -4 -4 -3 -3 -3 -2 -2 -2 -2 -1 -1 --------- Run | Scr Mat Min Exi Min Mat Gar Mat Fac Was Fac Gar Fac Gar Fac Was Fac Ext Cet Arc Hub Gar Fac Was Fac Gar Fac Gar Fac Gar Res Tes Gar Res Qua Sec Gar Acc Com Total 54225 | 73 599 605 1555 1034 1226 1039 1259 233 364 1947 1503 4364 958 928 362 1792 1081 257 84 1144 1170 1705 165 1579 889 2346 1520 2035 768 2266 1613 1723 2280 1313 2738 2715 2857 2136 Wait 4914 | 11 39 8 90 272 58 23 67 4 46 150 156 341 68 25 25 194 70 5 4 106 58 237 35 144 89 227 209 184 29 273 124 235 383 127 212 306 83 197 Move 42154 | 53 486 543 1329 715 960 882 1058 217 287 1603 1114 3668 706 786 281 1359 700 217 57 665 918 1240 130 1210 640 1865 1117 1619 556 1673 1225 1262 1582 1120 2229 2040 2468 1574 Hop . | . . . . . . . . . . . . . . . . . . . . . . . . . . . . . . . . . . . . . . . Pick Up 172 | . 1 3 8 . 4 6 1 1 . 9 6 8 2 3 . . 4 1 . 5 8 5 . 4 8 6 7 3 1 3 4 9 7 3 10 10 15 7 Fast Attach 380 | 6 6 1 18 4 24 4 11 1 8 15 3 14 4 3 5 2 2 7 . 6 3 11 . 9 1 26 5 16 . 30 23 4 17 6 27 8 15 35 Attach 62 | . . 1 3 1 2 . . . . 3 3 3 1 1 . . 1 . . . 3 1 . 2 2 2 2 1 1 2 4 3 3 . 4 5 4 4 Detach 14 | . 1 . 3 1 2 . . . . 1 . . . . 1 . . . . . . . . . . . . . . . 1 . . . 1 . 1 2 Swap 250 | . 4 5 1 . 2 4 3 . . 3 6 11 6 5 6 7 2 2 . 8 7 11 . 13 13 16 6 6 . 10 19 4 8 5 17 4 27 9 Drop 469 | . 4 1 29 2 21 7 11 1 5 15 6 19 5 5 8 2 6 9 . 10 9 14 . 8 7 30 12 19 1 27 28 11 22 9 20 16 29 41 Fire 2994 | 3 44 24 62 27 92 44 79 7 6 74 63 211 75 64 36 146 73 8 8 253 35 91 . 110 35 117 95 127 61 168 81 81 146 22 105 59 90 172 Melee 427 | . . . . . 10 . . . . . . 2 23 2 . 2 . 1 . 5 17 20 . 11 12 3 5 9 18 19 31 13 28 12 68 70 42 4 Ram . | . . . . . . . . . . . . . . . . . . . . . . . . . . . . . . . . . . . . . . . Kick . | . . . . . . . . . . . . . . . . . . . . . . . . . . . . . . . . . . . . . . . Crush . | . . . . . . . . . . . . . . . . . . . . . . . . . . . . . . . . . . . . . . . Escape Stasis 364 | . . . . . . 32 . . . 13 94 . 24 . . . 1 . . . 65 . . . 21 . 10 . 48 . . 19 . . . 36 1 . Rewire 329 | . . . . . . . . 2 . . 2 . . . . . 137 . . . . . . . 5 3 3 . . . . 54 . . . 121 2 . Trap . | . . . . . . . . . . . . . . . . . . . . . . . . . . . . . . . . . . . . . . . Miscellaneous 1696 | . 14 19 12 12 51 37 29 . 12 61 50 87 44 34 . 80 85 7 15 86 47 75 . 68 56 51 49 51 53 61 73 28 84 9 45 40 80 91 Route ------- -11/Scrapyard -10/Materials (discovered 4 exits: *Mat x3 / *Min) -10/Mines (discovered 3 exits: *Mat x2 / *Exi) -10/Exiles (discovered 2 exits: *Min x2) -9/Mines (discovered 2 exits: *Mat x2) -8/Materials (discovered 4 exits: *Fac x3 / Gar) -8/Garrison (discovered 3 exits: *Mat x3) -8/Materials (discovered 3 exits: *Fac x3) -7/Factory (discovered 3 exits: Low x2 / Gar) -7/Waste -7/Factory (discovered 3 exits: *Fac / *Low / Gar) -7/Garrison (discovered 3 exits: *Fac x3) -7/Factory (discovered 7 exits: *Fac x4 / *Low x2 / Gar) -7/Garrison (discovered 3 exits: *Fac x3) -6/Factory (discovered 2 exits: *Fac x2) -6/Waste -6/Factory (discovered 3 exits: *Fac / *Low / *Ext) -6/Extension (discovered 3 exits: *Fac x2 / *Cet) -6/Cetus -6/Archives (discovered 3 exits: *Fac / *Hub x2) -6/Hub_04(d) (discovered 5 exits: *Fac x4 / Gar) -6/Garrison (discovered 3 exits: *Fac x3) -5/Factory (discovered 4 exits: *Fac x2 / *Upp x2) -5/Waste -5/Factory (discovered 4 exits: Fac / *Upp x2 / Gar) -5/Garrison (discovered 3 exits: *Fac x3) -4/Factory (discovered 6 exits: *Res x2 / Upp x2 / Arm / Gar) -4/Garrison (discovered 3 exits: *Fac x3) -4/Factory (discovered 5 exits: *Res x2 / *Upp / Arm / Gar) -4/Garrison (discovered 3 exits: *Res x3) -3/Research (discovered 5 exits: *Res x3 / *Tes x2) -3/Testing (discovered 2 exits: *Res / Gar) -3/Garrison (discovered 3 exits: *Res x3) -2/Research (discovered 5 exits: *Acc x3 / *Qua x2) -2/Quarantine (discovered 2 exits: *Acc / *Sec) -2/Section 7 (discovered 2 exits: *Acc / Gar) -2/Garrison (discovered 3 exits: *Acc x3) -1/Access (discovered 2 exits: Sur / *Com) -1/Command (discovered 2 exits: *Sur x2) By MAIN.C's Side History --------- Turn | Location | Event 3 | -11/Scrapyard | Discovered new exit (range 15) 30 | -11/Scrapyard | Upgraded with Weapon slot (x1) 37 | -11/Scrapyard | Upgraded with Propulsion slot (x1) 111 | -11/Scrapyard | Entered Materials 169 | -10/Materials | Upgraded with Utility slot (x2) 230 | -10/Materials | Discovered new exit (range 12) 300 | -10/Materials | Build established: Mutant 503 | -10/Materials | Discovered new exit (range 13) 593 | -10/Materials | Identified exit to Mines 718 | -10/Materials | Discovered new exit (range 18) 746 | -10/Materials | Identified exit to Materials 805 | -10/Materials | Reached level 2 1011 | -10/Materials | Discovered exit to Materials (range 4) 1061 | -10/Materials | Entered Mines 1162 | -10/Mines | Discovered exit to Materials (range 10) 1183 | -10/Mines | Assisted by bots powering up and referring to "LRC-V3" 1291 | -10/Mines | Found a hidden stash of uninstalled traps 1463 | -10/Mines | Deemed a non-threat by the Exiles lab entrance 1464 | -10/Mines | Discovered new exit (range 5) 1471 | -10/Mines | Identified exit to Exiles 1546 | -10/Mines | Received a Rocket Launcher from a helpful Derelict 1565 | -10/Mines | Reached level 3 1595 | -10/Mines | Escorted by a lone wolf Derelict 1601 | -10/Mines | Upgraded with Weapon slot (x1) 1615 | -10/Mines | Learned location of Storage (-9) 1750 | -10/Mines | Learned location of 1 exit from Materials 1825 | -10/Mines | Discovered exit to Materials (range 10) 2020 | -10/Mines | Entered Exiles 2020 | -10/Exiles | Accompanied by 1 ally 2050 | -10/Exiles | Discovered new exit (range 15) 2084 | -10/Exiles | Identified exit to Mines 2116 | -10/Exiles | Met 8R-AWN 2133 | -10/Exiles | Build established: Skirmisher 2143 | -10/Exiles | Met EX-HEX 2184 | -10/Exiles | Met EX-BIN 2290 | -10/Exiles | Met EX-DEC 2303 | -10/Exiles | Learned location of Zion (-6) 2387 | -10/Exiles | Visited The Gauntlet 2613 | -10/Exiles | Discovered exit to Mines (range 15) 2756 | -10/Exiles | Aligned with FarCom system 2757 | -10/Exiles | Given EX-Vault access code 2796 | -10/Exiles | Opened EX-Vault 2836 | -10/Exiles | Found Prototype Ballistic Cannon 2836 | -10/Exiles | Identified AWS/Autocannon 2839 | -10/Exiles | Found Prototype Device 2839 | -10/Exiles | Identified Chronowheel 2839 | -10/Exiles | Activated Chronowheel 2839 | -10/Exiles | Spacetime reconverged on an earlier point 2848 | -10/Exiles | Found Prototype Device 2848 | -10/Exiles | Identified Trap Reconfigurator 2903 | -10/Exiles | Warned to stay clear of 0b10 Research branches 3190 | -10/Exiles | Attacked by the Exiles 3195 | -10/Exiles | Destroyed EX-BIN 3240 | -10/Exiles | Destroyed 7 combat bots 3248 | -10/Exiles | Core integrity fell below 50% 3271 | -10/Exiles | Destroyed 8R-AWN 3567 | -10/Exiles | Destroyed EX-HEX 3579 | -10/Exiles | Destroyed EX-DEC 3625 | -10/Exiles | Found Deploy-a-Sentry 3633 | -10/Exiles | DAS Turret deployed 4519 | -10/Exiles | Left Exiles lab with AWS/Autocannon 4519 | -10/Exiles | Entered Mines 4521 | -9/Mines | Reached level 4 4532 | -9/Mines | Discovered new exit (range 13) 4614 | -9/Mines | Received a Mining Laser from a helpful Derelict 4702 | -9/Mines | Learned 4 Materials zone layouts 4704 | -9/Mines | Upgraded with Weapon slot (x1) 4830 | -9/Mines | Discovered new exit (range 8) 4846 | -9/Mines | Identified exit to Materials 4872 | -9/Mines | Found a damaged Exp. Sensor Array with a note attached 4876 | -9/Mines | Found Prototype Device 4876 | -9/Mines | Identified Exp. Sensor Array 5044 | -9/Mines | Upgraded with Utility slot (x1) 5272 | -9/Mines | Found the Drone Emporium 5293 | -9/Mines | Found Prototype Device 5293 | -9/Mines | Identified Sensor Drone Bay 5352 | -9/Mines | Build established: Scavenger-Skirmisher 5479 | -9/Mines | Joined a pair of Derelicts in attacking an 0b10 outpost 5642 | -9/Mines | YI-UF0 nonchalantly dropped a Grenade Launcher on the ground 7139 | -9/Mines | Entered Materials 7140 | -8/Materials | Identified exit to Factory 7141 | -8/Materials | Reached level 5 7393 | -8/Materials | Reached level 6 7453 | -8/Materials | Upgraded with Propulsion slot (x1) 7581 | -8/Materials | Core integrity fell below 50% 7956 | -8/Materials | Reached level 7 7962 | -8/Materials | Upgraded with Propulsion slot (x1) 8004 | -8/Materials | Destroyed 7 combat bots 8193 | -8/Materials | Reached level 8 8273 | -8/Materials | Build established: Scout 8281 | -8/Materials | Discovered exit to Factory (range 4) 8311 | -8/Materials | Upgraded with Utility slot (x1) 8339 | -8/Materials | First assault squad dispatched 8470 | -8/Materials | Identified exit to Garrison 8470 | -8/Materials | Entered Garrison 8472 | -8/Garrison | Reached level 9 8480 | -8/Garrison | Triggered checkpoint 8516 | -8/Garrison | Triggered checkpoint 8532 | -8/Garrison | Discovered new exit (range 8) 8535 | -8/Garrison | Identified exit to Materials 8538 | -8/Garrison | Installed Relay Interface Framework 8617 | -8/Garrison | Garrison Relay disabled 8617 | -8/Garrison | Reached level 10 8624 | -8/Garrison | Triggered checkpoint 8697 | -8/Garrison | Garrison Relay disabled 8714 | -8/Garrison | Triggered checkpoint 8728 | -8/Garrison | Discovered exit to Materials (range 9) 8737 | -8/Garrison | Garrison Relay disabled 8737 | -8/Garrison | Reached level 11 8744 | -8/Garrison | Triggered checkpoint 8852 | -8/Garrison | Triggered checkpoint 8852 | -8/Garrison | Triggered checkpoint 8982 | -8/Garrison | Discovered exit to Materials (range 12) 9006 | -8/Garrison | Triggered checkpoint 9010 | -8/Garrison | Garrison Relay disabled 9149 | -8/Garrison | Entered Materials 9239 | -8/Materials | Reached level 12 9383 | -8/Materials | Build established: Scavenger-Scout 9449 | -8/Materials | Discovered exit to Factory (range 9) 9503 | -8/Materials | Upgraded with Utility slot (x1) 9799 | -8/Materials | Discovered exit to Factory (range 8) 9849 | -8/Materials | Discovered exit to Factory (range 15) 9961 | -8/Materials | Reached level 13 10002 | -8/Materials | Entered Factory 10004 | -7/Factory | Reached level 14 10007 | -7/Factory | Identified exit to Garrison 10103 | -7/Factory | Identified exit to Lower Caves 10136 | -7/Factory | Sucked down chute 10136 | -7/Factory | Entered Waste 10137 | -7/Waste | Met a frightened Derelict 10144 | -7/Waste | Spotted C-40 Crusher 10164 | -7/Waste | Destroyed C-40 Crusher 10172 | -7/Waste | Spotted C-40 Crusher 10178 | -7/Waste | Spotted C-40 Crusher 10184 | -7/Waste | Spotted C-40 Crusher 10184 | -7/Waste | Spotted C-40 Crusher 10185 | -7/Waste | Crushed by Compactor (1 part destroyed, 1 dropped) 10191 | -7/Waste | Crushed by Compactor (1 part destroyed, 1 dropped) 10194 | -7/Waste | Spotted C-40 Crusher 10202 | -7/Waste | Warlord forces began an assault 10250 | -7/Waste | Allies destroyed C-40 Crusher 10254 | -7/Waste | Allies destroyed C-40 Crusher 10370 | -7/Waste | Discovered new exit (range 11) 10375 | -7/Waste | Identified exit to Factory 10421 | -7/Waste | Entered Factory 10421 | -7/Factory | Accompanied by 6 allies 10651 | -7/Factory | Build established: Hauler-Scout 10790 | -7/Factory | Reached level 15 11512 | -7/Factory | Discovered new exit (range 17) 11635 | -7/Factory | Discovered exit to Lower Caves (range 16) 11653 | -7/Factory | Garrison activated, responded to threat 11657 | -7/Factory | Reached level 16 11680 | -7/Factory | Identified exit to Garrison 11703 | -7/Factory | Entered Garrison 11764 | -7/Garrison | Triggered checkpoint 11778 | -7/Garrison | Garrison Relay disabled 11828 | -7/Garrison | Spotted B-75 Beast 11857 | -7/Garrison | Destroyed B-75 Beast 11920 | -7/Garrison | Triggered checkpoint 11951 | -7/Garrison | Triggered checkpoint 12005 | -7/Garrison | Triggered checkpoint 12040 | -7/Garrison | Garrison Relay disabled 12064 | -7/Garrison | Triggered checkpoint 12077 | -7/Garrison | Discovered new exit (range 16) 12078 | -7/Garrison | Triggered checkpoint 12103 | -7/Garrison | Garrison Relay disabled 12159 | -7/Garrison | Spotted B-75 Beast 12159 | -7/Garrison | Spotted B-75 Beast 12200 | -7/Garrison | Triggered checkpoint 12224 | -7/Garrison | Discovered new exit (range 10) 12254 | -7/Garrison | Triggered checkpoint 12273 | -7/Garrison | Reached level 17 12298 | -7/Garrison | Garrison Relay disabled 12343 | -7/Garrison | Build established: Commander-Scout 12366 | -7/Garrison | Triggered checkpoint 12371 | -7/Garrison | Discovered new exit (range 20) 12381 | -7/Garrison | Garrison Relay disabled 12400 | -7/Garrison | Expanded RIF knowledge: Threat Obfuscation 12406 | -7/Garrison | Upgraded with Utility slot (x1) 12482 | -7/Garrison | Upgraded with Weapon slot (x1) 12710 | -7/Garrison | Entered Factory 12710 | -7/Factory | Accompanied by 7 allies 12781 | -7/Factory | Build established: Bothacker-Scout 12798 | -7/Factory | Garrison activated, responded to threat 13153 | -7/Factory | Discovered new exit (range 19) 13189 | -7/Factory | Build established: Commander-Scout 13257 | -7/Factory | Discovered new exit (range 12) 13282 | -7/Factory | Discovered exit to Lower Caves (range 17) 13441 | -7/Factory | Identified exit to Garrison 13883 | -7/Factory | Build established: Hauler-Scout 13990 | -7/Factory | Fabricated Matter Filter (x2) 14223 | -7/Factory | Garrison activated, responded to threat 14259 | -7/Factory | Discovered exit to Lower Caves (range 12) 14380 | -7/Factory | Reached level 18 14414 | -7/Factory | Discovered new exit (range 18) 14851 | -7/Factory | Discovered new exit (range 17) 14967 | -7/Factory | Garrison activated, responded to threat 15248 | -7/Factory | Entered Garrison 15298 | -7/Garrison | Triggered checkpoint 15358 | -7/Garrison | Garrison Relay disabled 15370 | -7/Garrison | Triggered checkpoint 15383 | -7/Garrison | Triggered checkpoint 15413 | -7/Garrison | Triggered checkpoint 15503 | -7/Garrison | Triggered checkpoint 15534 | -7/Garrison | Garrison Relay disabled 15582 | -7/Garrison | Discovered new exit (range 11) 15589 | -7/Garrison | Expanded RIF knowledge: Hotswap 15609 | -7/Garrison | Triggered checkpoint 15618 | -7/Garrison | Triggered checkpoint 15667 | -7/Garrison | Destroyed 15 combat bots 15681 | -7/Garrison | Discovered new exit (range 17) 15698 | -7/Garrison | Triggered checkpoint 15708 | -7/Garrison | Garrison Relay disabled 15752 | -7/Garrison | Triggered checkpoint 15780 | -7/Garrison | Garrison Relay disabled 15790 | -7/Garrison | Discovered new exit (range 16) 15930 | -7/Garrison | Entered Factory 15932 | -6/Factory | Reached level 19 16028 | -6/Factory | Discovered new exit (range 9) 16032 | -6/Factory | Upgraded with Utility slot (x1) 16033 | -6/Factory | Identified exit to Factory 16118 | -6/Factory | Garrison activated, responded to threat 16252 | -6/Factory | Discovered exit to Factory (range 5) 16264 | -6/Factory | Found Prototype Processor 16264 | -6/Factory | Identified Exp. Terrain Scan Processor 16280 | -6/Factory | First assault squad dispatched 16426 | -6/Factory | Garrison activated, responded to threat 16472 | -6/Factory | Destroyed 8 combat bots 16483 | -6/Factory | Sucked down chute 16483 | -6/Factory | Entered Waste 16489 | -6/Waste | Spotted C-40 Crusher 16495 | -6/Waste | Spotted C-40 Crusher 16523 | -6/Waste | Destroyed C-40 Crusher 16541 | -6/Waste | Found Damper Plating 16546 | -6/Waste | Spotted C-40 Crusher 16547 | -6/Waste | Spotted C-40 Crusher 16577 | -6/Waste | Spotted C-40 Crusher 16630 | -6/Waste | Spotted C-40 Crusher 16649 | -6/Waste | Discovered new exit (range 18) 16833 | -6/Waste | Identified exit to Factory 16901 | -6/Waste | Destroyed C-40 Crusher 16935 | -6/Waste | Destroyed C-40 Crusher 17012 | -6/Waste | Entered Factory 17115 | -6/Factory | Garrison activated, responded to threat 17180 | -6/Factory | Build established: Scavenger-Skirmisher 17239 | -6/Factory | Discovered new exit (range 7) 17248 | -6/Factory | Identified exit to Extension 17264 | -6/Factory | Allied Derelicts emerged from ambush trap array 17451 | -6/Factory | Reached level 20 17522 | -6/Factory | Build established: Hauler-Assassin 17969 | -6/Factory | Garrison activated, responded to threat 18183 | -6/Factory | Discovered exit to Factory (range 13) 18826 | -6/Factory | Garrison activated, responded to threat 19009 | -6/Factory | Discovered new exit (range 16) 19227 | -6/Factory | Identified exit to Lower Caves 19755 | -6/Factory | Entered Extension 19805 | -6/Extension | Disrupted transfer network 20011 | -6/Extension | Rescued a captive Derelict 20011 | -6/Extension | Rescued a captive Derelict 20057 | -6/Extension | Build established: Scavenger-Skirmisher 20114 | -6/Extension | Reached level 21 20273 | -6/Extension | Rescued a captive Derelict 20274 | -6/Extension | Rescued a captive Derelict 20367 | -6/Extension | Rescued a captive Derelict 20394 | -6/Extension | Spotted B-75 Beast 20430 | -6/Extension | Destroyed B-75 Beast 20437 | -6/Extension | Spotted B-75 Beast 20452 | -6/Extension | Discovered exit to Factory (range 18) 20460 | -6/Extension | Destroyed B-75 Beast 20671 | -6/Extension | Rescued A7 20996 | -6/Extension | Energy Cycler disabled 21009 | -6/Extension | Discovered new exit (range 20) 21032 | -6/Extension | Discovered exit to Factory (range 11) 21038 | -6/Extension | Build established: Commander-Skirmisher 21305 | -6/Extension | Identified exit to Cetus 21319 | -6/Extension | Entered Cetus 21319 | -6/Cetus | Accompanied by 9 allies (A7) 21324 | -6/Cetus | Acquired a Cetus Manufacturing Module code from A7 21339 | -6/Cetus | Spotted Cetus Guard 21339 | -6/Cetus | Spotted Cetus Guard 21341 | -6/Cetus | Spotted Cetus Guard 21343 | -6/Cetus | Allies destroyed Cetus Guard 21343 | -6/Cetus | Spotted Cetus Guard 21353 | -6/Cetus | Allies destroyed Cetus Guard 21360 | -6/Cetus | Allies destroyed Cetus Guard 21360 | -6/Cetus | Allies destroyed Cetus Guard 21635 | -6/Cetus | Found a strange terminal 21679 | -6/Cetus | Discovered new exit (range 20) 21707 | -6/Cetus | Identified exit to Archives 21715 | -6/Cetus | Entered Archives 21715 | -6/Archives | Accompanied by 6 allies (A7) 21738 | -6/Archives | Discovered exit to Factory (range 20) 21759 | -6/Archives | Discovered new exit (range 20) 21815 | -6/Archives | Discovered new exit (range 14) 21836 | -6/Archives | Identified exit to Hub_04(d) 21841 | -6/Archives | Entered Hub_04(d) 21841 | -6/Hub_04(d) | Accompanied by 5 allies 21935 | -6/Hub_04(d) | Discovered exit to Factory (range 20) 21943 | -6/Hub_04(d) | Build established: Scavenger-Skirmisher 22030 | -6/Hub_04(d) | Reached level 22 22273 | -6/Hub_04(d) | Found Scatter Rocket Array 22392 | -6/Hub_04(d) | Discovered exit to Factory (range 11) 22686 | -6/Hub_04(d) | Discovered exit to Factory (range 15) 22715 | -6/Hub_04(d) | Allied Derelicts emerged from ambush trap array 22853 | -6/Hub_04(d) | Spotted B-75 Beast 22876 | -6/Hub_04(d) | Destroyed B-75 Beast 22904 | -6/Hub_04(d) | Discovered exit to Factory (range 5) 22980 | -6/Hub_04(d) | Network Hub disabled 23006 | -6/Hub_04(d) | Network Hub disabled 23076 | -6/Hub_04(d) | Spotted Lightning 23076 | -6/Hub_04(d) | Spotted Lightning 23076 | -6/Hub_04(d) | Spotted Lightning 23106 | -6/Hub_04(d) | Destroyed Lightning 23121 | -6/Hub_04(d) | Spotted Lightning 23125 | -6/Hub_04(d) | Spotted Lightning 23127 | -6/Hub_04(d) | Spotted Lightning 23132 | -6/Hub_04(d) | Destroyed Lightning 23147 | -6/Hub_04(d) | Spotted Lightning 23149 | -6/Hub_04(d) | Spotted Lightning 23151 | -6/Hub_04(d) | Spotted Lightning 23175 | -6/Hub_04(d) | Destroyed Lightning 23195 | -6/Hub_04(d) | Destroyed Lightning 23204 | -6/Hub_04(d) | Destroyed Lightning 23212 | -6/Hub_04(d) | Destroyed Lightning 23231 | -6/Hub_04(d) | Destroyed Lightning 23263 | -6/Hub_04(d) | Destroyed 8 combat bots 23286 | -6/Hub_04(d) | Spotted Lightning 23286 | -6/Hub_04(d) | Spotted Lightning 23287 | -6/Hub_04(d) | Spotted Lightning 23319 | -6/Hub_04(d) | Destroyed Lightning 23346 | -6/Hub_04(d) | Found EM Dispersion Field 23404 | -6/Hub_04(d) | Destroyed Lightning 23427 | -6/Hub_04(d) | Destroyed Lightning 23440 | -6/Hub_04(d) | Destroyed Lightning 23457 | -6/Hub_04(d) | Destroyed Lightning 23550 | -6/Hub_04(d) | Network Hub disabled 23620 | -6/Hub_04(d) | Identified exit to Garrison 23620 | -6/Hub_04(d) | Entered Garrison 23664 | -6/Garrison | Triggered checkpoint 23685 | -6/Garrison | Garrison Relay disabled 23701 | -6/Garrison | Build established: Hauler-Assassin 23815 | -6/Garrison | Triggered checkpoint 23858 | -6/Garrison | Core integrity fell below 50% 23879 | -6/Garrison | Destroyed 9 combat bots 23938 | -6/Garrison | Discovered exit to Factory (range 12) 23954 | -6/Garrison | Expanded RIF knowledge: Zone Cloak 23988 | -6/Garrison | Triggered checkpoint 23995 | -6/Garrison | Garrison Relay disabled 24028 | -6/Garrison | Triggered checkpoint 24028 | -6/Garrison | Triggered checkpoint 24151 | -6/Garrison | Build established: Scavenger-Scout 24279 | -6/Garrison | Discovered exit to Factory (range 19) 24365 | -6/Garrison | Triggered checkpoint 24408 | -6/Garrison | Garrison Relay disabled 24468 | -6/Garrison | Discovered exit to Factory (range 19) 24504 | -6/Garrison | Triggered checkpoint 24560 | -6/Garrison | Garrison Relay disabled 24690 | -6/Garrison | Entered Factory 24771 | -5/Factory | Spotted B-75 Beast 24965 | -5/Factory | Reached level 23 25203 | -5/Factory | Core integrity fell below 50% 25278 | -5/Factory | Build established: Hacker-Scout 25347 | -5/Factory | Fabricated L-41 Fighter? 25479 | -5/Factory | Fabricated L-41 Fighter? 25554 | -5/Factory | Discovered new exit (range 72) 25841 | -5/Factory | Discovered new exit (range 19) 25849 | -5/Factory | Discovered new exit (range 16) 25962 | -5/Factory | Discovered new exit (range 8) 25966 | -5/Factory | Identified exit to Upper Caves 25989 | -5/Factory | Identified exit to Factory 26022 | -5/Factory | Fabricated Cld. Airjet? 26076 | -5/Factory | Sucked down chute 26076 | -5/Factory | Entered Waste 26087 | -5/Waste | Spotted C-40 Crusher 26091 | -5/Waste | EMP discharged 26091 | -5/Waste | Spotted C-40 Crusher 26106 | -5/Waste | Spotted C-40 Crusher 26108 | -5/Waste | Spotted C-40 Crusher 26117 | -5/Waste | Spotted C-40 Crusher 26124 | -5/Waste | Spotted C-40 Crusher 26176 | -5/Waste | Discovered new exit (range 10) 26180 | -5/Waste | Identified exit to Factory 26180 | -5/Waste | Entered Factory 26435 | -5/Factory | Fabricated Cld. Airjet (x1) 26565 | -5/Factory | Identified exit to Garrison 26573 | -5/Factory | Garrison activated, responded to threat 26612 | -5/Factory | Reached level 24 26633 | -5/Factory | Destroyed 9 combat bots 26857 | -5/Factory | Fabricated Exp. Signal Interpreter (x1) 26876 | -5/Factory | Discovered exit to Factory (range 19) 26888 | -5/Factory | Garrison activated, responded to threat 26949 | -5/Factory | Destroyed 9 combat bots 27157 | -5/Factory | Central database locked down 27232 | -5/Factory | Identified exit to Garrison 27258 | -5/Factory | Entered Garrison 27261 | -5/Garrison | Expanded RIF knowledge: Patrol Navigation 27277 | -5/Garrison | Garrison Relay disabled 27286 | -5/Garrison | Triggered checkpoint 27308 | -5/Garrison | Spotted B-75 Beast 27317 | -5/Garrison | Triggered checkpoint 27317 | -5/Garrison | Triggered checkpoint 27326 | -5/Garrison | Assimilated Beast 6a with formatsys_high 27386 | -5/Garrison | Triggered checkpoint 27387 | -5/Garrison | Destroyed 15 combat bots 27454 | -5/Garrison | Triggered checkpoint 27457 | -5/Garrison | Discovered exit to Factory (range 15) 27478 | -5/Garrison | Garrison Relay disabled 27550 | -5/Garrison | Garrison Relay disabled 27553 | -5/Garrison | Triggered checkpoint 27581 | -5/Garrison | Discovered exit to Factory (range 19) 27616 | -5/Garrison | Triggered checkpoint 27642 | -5/Garrison | Triggered checkpoint 27707 | -5/Garrison | Discovered exit to Factory (range 17) 27718 | -5/Garrison | Triggered checkpoint 27729 | -5/Garrison | Garrison Relay disabled 27875 | -5/Garrison | Entered Factory 27875 | -4/Factory | Accompanied by 4 allies 27877 | -4/Factory | Reached level 25 27936 | -4/Factory | Identified exit to Upper Caves 27936 | -4/Factory | Identified exit to Armory 28104 | -4/Factory | Discovered new exit (range 15) 28123 | -4/Factory | Identified exit to Research 28126 | -4/Factory | Garrison activated, responded to threat 28240 | -4/Factory | Garrison activated, responded to threat 28267 | -4/Factory | Reached level 26 28272 | -4/Factory | Upgraded with Utility slot (x1) 28329 | -4/Factory | Fabricated Cld. Gravmag System? 28421 | -4/Factory | Fabricated Cld. Gravmag System? 28495 | -4/Factory | Fabricated Cld. Gravmag System (x1) 28669 | -4/Factory | Fabricated Cld. Gravmag System? 28800 | -4/Factory | Found Unknown Protection 28800 | -4/Factory | Identified Imp. Powered Armor 28890 | -4/Factory | Discovered exit to Research (range 16) 28988 | -4/Factory | Build established: Machinist-Scout 29031 | -4/Factory | Fabricated Exp. Terrain Scanner (x1) 29204 | -4/Factory | Garrison activated, responded to threat 29226 | -4/Factory | Identified exit to Garrison 29226 | -4/Factory | Entered Garrison 29226 | -4/Garrison | Accompanied by 3 allies 29228 | -4/Garrison | Expanded RIF knowledge: Autoassimilate 29266 | -4/Garrison | Garrison Relay disabled 29279 | -4/Garrison | Triggered checkpoint 29298 | -4/Garrison | Triggered checkpoint 29362 | -4/Garrison | Triggered checkpoint 29370 | -4/Garrison | Triggered checkpoint 29396 | -4/Garrison | Triggered checkpoint 29462 | -4/Garrison | Triggered checkpoint 29507 | -4/Garrison | Garrison Relay disabled 29513 | -4/Garrison | Discovered new exit (range 25) 29606 | -4/Garrison | Discovered new exit (range 24) 29730 | -4/Garrison | Triggered checkpoint 29762 | -4/Garrison | Garrison Relay disabled 29772 | -4/Garrison | Found Adv. Powered Armor 29814 | -4/Garrison | Discovered new exit (range 12) 29824 | -4/Garrison | Triggered checkpoint 29839 | -4/Garrison | Garrison Relay disabled 29952 | -4/Garrison | Reached level 27 30049 | -4/Garrison | Found Adv. Powered Armor 30080 | -4/Garrison | Found Antimissile System 30099 | -4/Garrison | Identified exit to Factory 30136 | -4/Garrison | Entered Factory 30136 | -4/Factory | Accompanied by 1 ally 30334 | -4/Factory | Discovered exit to Armory (range 30) 30386 | -4/Factory | Found Prototype Processor 30386 | -4/Factory | Identified Exp. Melee Analysis Suite 30450 | -4/Factory | Discovered exit to Upper Caves (range 10) 30493 | -4/Factory | Fabricated Enh. Autogun (x1) 30551 | -4/Factory | Fabricated Enh. Autogun? 30668 | -4/Factory | Spotted B-86 Titan 30674 | -4/Factory | Allied Derelicts emerged from ambush trap array 30685 | -4/Factory | Discovered exit to Research (range 8) 30897 | -4/Factory | Garrison activated, responded to threat 31039 | -4/Factory | Discovered exit to Research (range 5) 31067 | -4/Factory | Identified exit to Garrison 31295 | -4/Factory | Entered Garrison 31297 | -4/Garrison | Expanded RIF knowledge: Robot Detection 31336 | -4/Garrison | Triggered checkpoint 31357 | -4/Garrison | Garrison Relay disabled 31451 | -4/Garrison | Triggered checkpoint 31475 | -4/Garrison | Discovered exit to Research (range 28) 31484 | -4/Garrison | Triggered checkpoint 31495 | -4/Garrison | Destroyed 16 combat bots 31503 | -4/Garrison | Triggered checkpoint 31515 | -4/Garrison | Garrison Relay disabled 31585 | -4/Garrison | Garrison Relay disabled 31600 | -4/Garrison | Triggered checkpoint 31610 | -4/Garrison | Discovered exit to Research (range 11) 31642 | -4/Garrison | Triggered checkpoint 31675 | -4/Garrison | Garrison Relay disabled 31681 | -4/Garrison | Triggered checkpoint 31719 | -4/Garrison | Discovered exit to Research (range 20) 31809 | -4/Garrison | Entered Research 31811 | -3/Research | Reached level 28 31865 | -3/Research | Identified exit to Research 31931 | -3/Research | Found Prototype Processor 31931 | -3/Research | Identified Spectral Analyzer 32035 | -3/Research | Spotted B-86 Titan 32036 | -3/Research | Destroyed 8 combat bots 32059 | -3/Research | First assault squad dispatched 32102 | -3/Research | Identified exit to Testing 32113 | -3/Research | Upgraded with Weapon slot (x1) 32558 | -3/Research | Reached level 29 32775 | -3/Research | Spotted B-86 Titan 32851 | -3/Research | Destroyed 9 combat bots 33210 | -3/Research | Entered Testing 33210 | -3/Testing | Accompanied by 1 ally 33214 | -3/Testing | Spotted PH-IFBJQBIWWO 33226 | -3/Testing | Protovariant out of control (PH-IFBJQBIWWO) 33232 | -3/Testing | Upgraded with Weapon slot (x1) 33385 | -3/Testing | Found Exp. Shield Generator 33418 | -3/Testing | Destroyed PH-IFBJQBIWWO 33462 | -3/Testing | Central database locked down 33532 | -3/Testing | Spotted Striker 33605 | -3/Testing | Spotted PX-A0D62WZ8SQ 33645 | -3/Testing | Destroyed PX-A0D62WZ8SQ 33661 | -3/Testing | Found Exp. Transmission Jammer 33725 | -3/Testing | Found Prototype Energy Cannon 33725 | -3/Testing | Identified Null Cannon 33751 | -3/Testing | Reached level 30 33789 | -3/Testing | Found Enh. Force Lance 33831 | -3/Testing | Found Myomer Exoskeleton 33870 | -3/Testing | Discovered exit to Research (range 19) 33910 | -3/Testing | Garrison activated, responded to threat 33979 | -3/Testing | Found Prototype Hackware 33979 | -3/Testing | Identified System Mapper 34047 | -3/Testing | Found SHELL Armor 34076 | -3/Testing | Fabricated Prc. Matter Filter? 34172 | -3/Testing | Identified exit to Garrison 34176 | -3/Testing | Entered Garrison 34176 | -3/Garrison | Accompanied by 1 ally 34189 | -3/Garrison | Spotted B-86 Titan 34215 | -3/Garrison | Spotted B-86 Titan 34293 | -3/Garrison | Triggered checkpoint 34342 | -3/Garrison | Destroyed 13 combat bots 34365 | -3/Garrison | Garrison Relay disabled 34372 | -3/Garrison | Triggered checkpoint 34377 | -3/Garrison | Triggered checkpoint 34382 | -3/Garrison | Triggered checkpoint 34414 | -3/Garrison | Destroyed B-86 Titan 34439 | -3/Garrison | Garrison Relay disabled 34460 | -3/Garrison | Triggered checkpoint 34466 | -3/Garrison | Discovered exit to Research (range 12) 34543 | -3/Garrison | Discovered exit to Research (range 11) 34561 | -3/Garrison | Triggered checkpoint 34585 | -3/Garrison | Garrison Relay disabled 34660 | -3/Garrison | Triggered checkpoint 34754 | -3/Garrison | Triggered checkpoint 34764 | -3/Garrison | Garrison Relay disabled 34774 | -3/Garrison | Discovered exit to Research (range 8) 34779 | -3/Garrison | Expanded RIF knowledge: Autoassimilate 34822 | -3/Garrison | Assimilated Titan 8a with formatsys_high 34949 | -3/Garrison | Build established: Commander-Scout 35181 | -3/Garrison | Entered Research 35181 | -2/Research | Accompanied by 18 allies 35183 | -2/Research | Reached level 31 35207 | -2/Research | Identified exit to Quarantine 35298 | -2/Research | Garrison activated, responded to threat 35373 | -2/Research | Discovered new exit (range 88) 35374 | -2/Research | Reached level 32 35376 | -2/Research | Upgraded with Utility slot (x1) 35431 | -2/Research | First assault squad dispatched 35503 | -2/Research | Destroyed 9 combat bots 35553 | -2/Research | Spotted B-90 Cyclops 35554 | -2/Research | Assimilated Cyclops 9a with formatsys_high 35583 | -2/Research | Discovered new exit (range 30) 35627 | -2/Research | Destroyed 8 combat bots 35669 | -2/Research | Build established: Machinist-Scout 35810 | -2/Research | Identified exit to Access 35976 | -2/Research | Found Fusion Bomb Launcher 36035 | -2/Research | Destroyed 7 combat bots 36041 | -2/Research | Found Prototype Slashing Weapon 36041 | -2/Research | Identified Nanosword 36051 | -2/Research | Found Prototype Device 36051 | -2/Research | Identified Beam Splitter 36169 | -2/Research | Found Prototype Hackware 36169 | -2/Research | Identified Exp. Hacking Suite 36194 | -2/Research | Discovered exit to Access (range 21) 36237 | -2/Research | Reached level 33 36470 | -2/Research | Fabricated Exp. Armor Integrity Analyzer? 36553 | -2/Research | Fabricated Exp. Phase Shifter (x1) 36604 | -2/Research | Fabricated Adv. Kinecellerator (x1) 36621 | -2/Research | Entered Quarantine 36639 | -2/Quarantine | Found Alien Artifact 36639 | -2/Quarantine | Identified Matter Drive 36699 | -2/Quarantine | Found Alien Energy Cannon 36699 | -2/Quarantine | Identified Core Cannon 37061 | -2/Quarantine | Discovered exit to Access (range 9) 37098 | -2/Quarantine | Found Alien Artifact 37107 | -2/Quarantine | Identified Core Reset Matrix 37124 | -2/Quarantine | Found Alien Artifact 37139 | -2/Quarantine | Identified Subatomic Replicator 37162 | -2/Quarantine | Found Hpw. Transdimensional Reconstructor 37219 | -2/Quarantine | Spotted Fortress 37273 | -2/Quarantine | Discovered new exit (range 6) 37274 | -2/Quarantine | Identified exit to Section 7 37276 | -2/Quarantine | Entered Section 7 37567 | -2/Section 7 | Found Integrated Dissipator 37567 | -2/Section 7 | Installed Integrated Dissipator, increased core heat dissipation (+20) 37611 | -2/Section 7 | Spotted B-90 Cyclops 37683 | -2/Section 7 | Found Integrated Dissipator 37683 | -2/Section 7 | Installed Integrated Dissipator, increased core heat dissipation (+20) 37691 | -2/Section 7 | Spotted S7 Guard 37700 | -2/Section 7 | Spotted S7 Guard 37713 | -2/Section 7 | Destroyed S7 Guard 37729 | -2/Section 7 | Destroyed S7 Guard 37745 | -2/Section 7 | Found Core Membrane 37745 | -2/Section 7 | Installed Core Membrane, gained immunity to corruption 37870 | -2/Section 7 | Discovered exit to Access (range 19) 37985 | -2/Section 7 | Spotted S7 Guard 37992 | -2/Section 7 | Destroyed S7 Guard 38001 | -2/Section 7 | Found Alien Artifact 38036 | -2/Section 7 | Identified Integrated Singularity Reactor 38037 | -2/Section 7 | Used Subatomic Replicator to replicate Integrated Singularity Reactor 38038 | -2/Section 7 | Installed Integrated Singularity Reactor, increased core energy generation (+20) 38040 | -2/Section 7 | Installed Integrated Singularity Reactor, increased core energy generation (+20) 38082 | -2/Section 7 | Spotted Alpha 7 38083 | -2/Section 7 | Spotted Alpha 7 38086 | -2/Section 7 | Spotted S7 Guard 38097 | -2/Section 7 | Destroyed S7 Guard 38298 | -2/Section 7 | Reached level 34 38307 | -2/Section 7 | Found Integrated Heat Negator 38307 | -2/Section 7 | Installed Integrated Heat Negator, increased core heat dissipation (+40) 38361 | -2/Section 7 | Found Core Regenerator 38361 | -2/Section 7 | Used Core Regenerator, restored core integrity (+262) 38391 | -2/Section 7 | Identified exit to Garrison 38462 | -2/Section 7 | Spotted Striker 38462 | -2/Section 7 | Spotted Striker 38520 | -2/Section 7 | Found Alien Energy Gun 38520 | -2/Section 7 | Identified Sigix Quantum Sheargun 38580 | -2/Section 7 | Spotted B-99 Colossus 38631 | -2/Section 7 | Found Alien Artifact 38631 | -2/Section 7 | Identified LRC Insulator 38631 | -2/Section 7 | Installed LRC Insulator, gained EM resistance (25) 38636 | -2/Section 7 | Found Alien Artifact 38636 | -2/Section 7 | Identified LRC Energy Well 38636 | -2/Section 7 | Installed LRC Energy Well, increased energy storage capacity (+250) 38638 | -2/Section 7 | Found Alien Artifact 38638 | -2/Section 7 | Identified LRC Storage 38638 | -2/Section 7 | Installed LRC Storage, increased inventory capacity (+2) 38679 | -2/Section 7 | Found Alien Artifact 38679 | -2/Section 7 | Identified Integrity Redistributor 38679 | -2/Section 7 | Used Integrity Redistributor, redistributed integrity from core (-23) 38727 | -2/Section 7 | Found Core Expander 38727 | -2/Section 7 | Installed Core Expander, added new Weapon slot 38773 | -2/Section 7 | Found Sigix Quantum Sheargun 38801 | -2/Section 7 | Spotted Executioner 38802 | -2/Section 7 | Spotted Executioner 38806 | -2/Section 7 | Destroyed Executioner 38808 | -2/Section 7 | Destroyed Executioner 38823 | -2/Section 7 | Found Prototype Processor 38823 | -2/Section 7 | Identified Exp. Core Analyzer 38852 | -2/Section 7 | Entered Garrison 38870 | -2/Garrison | Triggered checkpoint 38887 | -2/Garrison | Garrison Relay disabled 38917 | -2/Garrison | Spotted B-90 Cyclops 38928 | -2/Garrison | Triggered checkpoint 38934 | -2/Garrison | Triggered checkpoint 38984 | -2/Garrison | Triggered checkpoint 38990 | -2/Garrison | Destroyed B-90 Cyclops 39004 | -2/Garrison | Triggered checkpoint 39080 | -2/Garrison | Triggered checkpoint 39102 | -2/Garrison | Garrison Relay disabled 39129 | -2/Garrison | Discovered exit to Access (range 19) 39138 | -2/Garrison | Expanded RIF knowledge: Alert ID Control 39197 | -2/Garrison | Triggered checkpoint 39288 | -2/Garrison | Garrison Relay disabled 39294 | -2/Garrison | Triggered checkpoint 39301 | -2/Garrison | Discovered exit to Access (range 7) 39326 | -2/Garrison | Triggered checkpoint 39352 | -2/Garrison | Garrison Relay disabled 39363 | -2/Garrison | Discovered exit to Access (range 17) 39426 | -2/Garrison | Triggered checkpoint 39443 | -2/Garrison | Garrison Relay disabled 39663 | -2/Garrison | Phase Generator disabled 39758 | -2/Garrison | Garrison Relay disabled 39900 | -2/Garrison | Build established: Commander-Scout 40124 | -2/Garrison | Upgraded with Utility slot (x1) 40469 | -2/Garrison | Entered Access 40469 | -1/Access | Accompanied by 41 allies 40527 | -1/Access | Reached level 35 40692 | -1/Access | Garrison activated, responded to threat 40720 | -1/Access | Spotted B-99 Colossus 40739 | -1/Access | Destroyed B-99 Colossus 40749 | -1/Access | Found Prototype Ballistic Gun 40749 | -1/Access | Identified Multirail 40760 | -1/Access | Found Multirail 40933 | -1/Access | Discovered new exit (range 7) 41021 | -1/Access | Fabricated Exp. Target Analyzer (x1) 41033 | -1/Access | Identified exit to Command 41058 | -1/Access | Fabricated Exp. Weapon Cycler? 41068 | -1/Access | Local fabrication network quarantined 41215 | -1/Access | Identified exit to Surface 41223 | -1/Access | Build established: Machinist-Scout 41241 | -1/Access | Energy Cycler disabled 41482 | -1/Access | Destroyed 14 combat bots 41626 | -1/Access | Reached level 36 41654 | -1/Access | Destroyed 9 combat bots 41712 | -1/Access | Spotted B-99 Colossus 41712 | -1/Access | Spotted B-99 Colossus 41724 | -1/Access | Destroyed B-99 Colossus 41732 | -1/Access | Destroyed B-99 Colossus 41736 | -1/Access | Found Multirail 41756 | -1/Access | Found Multirail 41759 | -1/Access | Found Multirail 41964 | -1/Access | Entered Command 42029 | -1/Command | Destroyed 10 combat bots 42071 | -1/Command | Spotted B-99 Colossus 42084 | -1/Command | Destroyed B-99 Colossus 42087 | -1/Command | Found Multirail 42129 | -1/Command | Disengaged cave seal 42129 | -1/Command | Wild derelicts emerged from the dark tunnel 42245 | -1/Command | Destroyed 9 combat bots 42324 | -1/Command | Spotted M Guard 42326 | -1/Command | Spotted Combat Programmer 42327 | -1/Command | Spotted Combat Programmer 42336 | -1/Command | Spotted M Guard 42350 | -1/Command | Destroyed M Guard 42361 | -1/Command | Destroyed M Guard 42368 | -1/Command | Destroyed Combat Programmer 42373 | -1/Command | Destroyed Combat Programmer 42373 | -1/Command | All MAIN.C guards destroyed 42407 | -1/Command | Destroyed 7 combat bots 42412 | -1/Command | Found Prototype Device 42412 | -1/Command | Identified Thermal Barrier 42437 | -1/Command | Found Prototype Device 42437 | -1/Command | Identified AEGIS Remote Shield 42441 | -1/Command | Found Zero-point Reactor 42520 | -1/Command | Upgraded with Power slot (x1) 42520 | -1/Command | Found Zero-point Reactor 42629 | -1/Command | Destroyed 7 combat bots 42693 | -1/Command | Build established: Machinist-Executioner 42714 | -1/Command | First assault squad dispatched 42803 | -1/Command | Met MAIN.C 42803 | -1/Command | Reached level 37 42803 | -1/Command | Upgraded with Utility slot (x1) 42997 | -1/Command | 0b10 Conduit disabled 43005 | -1/Command | Destroyed MAIN.C Shell 43006 | -1/Command | Surrendered to MAIN.C 43006 | -1/Command | Loaded intel: 45 machine locations 43006 | -1/Command | Loaded intel: 99 trap records 43006 | -1/Command | Discovered exit to Surface (range 43) 43006 | -1/Command | Discovered exit to Surface (range 97) 43054 | -1/Command | Found Prototype Reactor 43054 | -1/Command | Identified Vortex Chain Reactor 43058 | -1/Command | Found Prototype Device 43058 | -1/Command | Identified System Purifier 43061 | -1/Command | Found Prototype Device 43061 | -1/Command | Identified Adv. Particle Accelerator 43064 | -1/Command | Found Prototype Device 43064 | -1/Command | Identified Femtoactuators 43083 | -1/Command | Found Multirail 43112 | -1/Command | MAIN.C activated Command garrisons 43152 | -1/Command | Unknown forces attacked Command 43152 | -1/Command | Spotted EQ-001 43154 | -1/Command | Spotted EQ-000 43155 | -1/Command | Spotted EQ-002 43171 | -1/Command | Spotted EQ-015 43172 | -1/Command | Spotted EQ-003 43172 | -1/Command | Spotted EQ-004 43173 | -1/Command | Spotted EQ-006 43181 | -1/Command | Destroyed EQ-006 43184 | -1/Command | Found Exp. Core Analyzer 43187 | -1/Command | Destroyed EQ-004 43189 | -1/Command | Destroyed EQ-003 43194 | -1/Command | Found Prototype Device 43194 | -1/Command | Identified EM Disruption Field 43223 | -1/Command | Destroyed EQ-001 43242 | -1/Command | Spotted EQ-022 43242 | -1/Command | Spotted EQ-019 43242 | -1/Command | Spotted EQ-020 43251 | -1/Command | Destroyed EQ-022 43269 | -1/Command | Spotted EQ-029 43269 | -1/Command | Spotted EQ-018 43274 | -1/Command | Destroyed EQ-029 43277 | -1/Command | Destroyed EQ-018 43290 | -1/Command | Destroyed EQ-000 43307 | -1/Command | Spotted EQ-030 43308 | -1/Command | Spotted EQ-033 43312 | -1/Command | Destroyed EQ-033 43315 | -1/Command | Destroyed EQ-030 43315 | -1/Command | Spotted EQ-032 43316 | -1/Command | Destroyed EQ-002 43321 | -1/Command | Spotted EQ-007 43326 | -1/Command | Destroyed EQ-032 43329 | -1/Command | Destroyed EQ-007 43335 | -1/Command | Spotted EQ-008 43343 | -1/Command | Spotted EQ-044 43343 | -1/Command | Spotted EQ-040 43343 | -1/Command | Spotted EQ-038 43343 | -1/Command | Spotted EQ-039 43346 | -1/Command | Destroyed EQ-039 43349 | -1/Command | Spotted EQ-057 43352 | -1/Command | Destroyed EQ-038 43356 | -1/Command | Spotted EQ-041 43366 | -1/Command | Spotted EQ-036 43366 | -1/Command | Spotted EQ-053 43373 | -1/Command | Destroyed 7 combat bots 43374 | -1/Command | Destroyed EQ-040 43379 | -1/Command | Destroyed EQ-053 43379 | -1/Command | Destroyed EQ-036 43433 | -1/Command | Spotted EQ-051 43433 | -1/Command | Spotted EQ-043 43439 | -1/Command | Destroyed EQ-051 43445 | -1/Command | Spotted EQ-050 43448 | -1/Command | Spotted EQ-061 43449 | -1/Command | Spotted EQ-060 43449 | -1/Command | Spotted EQ-062 43450 | -1/Command | Spotted EQ-071 43456 | -1/Command | Destroyed EQ-062 43457 | -1/Command | Destroyed EQ-060 43470 | -1/Command | Spotted EQ-058 43471 | -1/Command | Destroyed EQ-061 43474 | -1/Command | Destroyed EQ-058 43476 | -1/Command | Spotted EQ-074 43477 | -1/Command | Destroyed EQ-050 43479 | -1/Command | Destroyed EQ-074 43500 | -1/Command | Destroyed 7 combat bots 43551 | -1/Command | Spotted EQ-084 43552 | -1/Command | Destroyed EQ-084 43553 | -1/Command | Attackers retreated from Command 43553 | *** | Fortifying 0b10! Last Messages --------------- EQ-084 warps into view. 43551_ Slug penetrates EQ-084. 43551_ Slug penetrates 0b10 Conduit. 43551_ EQ-084 knocked back. 43551_ Slug penetrates EQ-084. 43552_ Quantum Shear penetrates EQ-084. 43552_ EQ-084 Com. HERF Cannon severed. 43552_ Quantum Shear penetrates EQ-084. 43552_ EQ-084 suffers critical hit. 43552_ Destroyed Exp. Biometal Leg. 43552_ EQ-084 destroyed. 43552_ Slug penetrates Reinforced Barrier. 43553_ ALERT: Enemy forces retreating. MAIN.C: I admit your assistance was pivotal here. It looks like I was right to trust you. This attack appears to have been designed to merely test our defenses, although it was nearly effective enough to force me to take the conflict to the next level. Investigating the origins of these bots should be one of our highest priorities... Map ----- +----------------------------------------------------+ | # #??????????????????#?#?????#?#?##??#?#####?#?#?# | | # #????????????????????#??#??##?#?????###########? | | # #????????????????#???##???##?#???#?#?##??#?####? | | # #????????????#???#?#?#???????????#?#??######?### | | # #??????????????##????#?##?#??##??#??##?######### | | # #???????????#????#?#????##???????##??#?######### | | # #????????????????#??????#??????########?######## | | #+##?????????????#?#??##??#????##?#??#?########### | | ####?????????#???#????????####??##?##?######### | | + #??????????????????#??##?#?###????#??####### | | ! ## #???????#?????????##???###?###??############ | | ##""####????????????##??###??#####?############ | | # #??##?????#?#???##???#??#?############## | | # ######################################## | | # #?##?????#??????????##??#?#?############ | | ##+# #?#?#######################?############ | | ## # ] #?#?#""""""" """" ############## | | !*# #####"" "" ############## | | !% ####""""" !! ############## | | ### !=! #?#"""" """""* ! [ | | # ##!%! % ####" " ""!! % % % | | ? !!=%[= ###"" """"" %!k | | ?# !*=!]!#=#?# " """" g [ ############## | | ?# =*!=!#!#?# """" % E[[ ######?####### | | ?# *=!*%!=##?# ! =!**%############## | | ##% ]*%]% =*#?# " !%* !@%! h ==e==############## | | !!!]!!%!]# =### !!!!!!M = *!]!*############## | | !!!]!!=[!=!%###""[!=g *%=!* !%] ############## | | !*[%=!%!!%=[#?#!=*ggg![=! != !! ############## | | *!!!===!]=* #?#[l! =g=!!!=[ % ############## | | =% !!!%!==]####!g!![ |=!!! ! ############## | | !=%[!!!=*?*!* !! [ *%" " ############## | | =[=%!%=[!%!!!!=! = = " #?############ | | !%=![=!g!=!!!!== !!= ############## | | =! =!% ####%= !%*! ############## | | =[!!#?#! !!= " "############## | | *% [!!*#?# "" ############## | | = ###################################### | | "##??????#??#?????????#?################ | | ######################################## | | # "????????????#?#?#?#?##?################ | | # #??????????????????#?#???#######?####### | | #! #??????#?????????#??##?################# | | #!=! /!]#???????????#???#?#??#?#######?######### | | #!=* /! "??????????#???#??#?#?#?#?##?#?#?####### | | # !![ /] #????????????????###?####?#?#?########## | | #]*! #??????????????????##???####?########### | | !!=! #?????????????????????#?#?###?########## | | #### #???????????????????????#???############ | | ## #???????????????????????????##?######### | +----------------------------------------------------+ Best States ------------- Heat Dissipation 189 Coolant Potential 120 Energy Generation 121 Energy Capacity 1050 Matter Stores 300 Matter Capacity 300 Sight Range 20 Robot Scan Range 36 Terrain Scan Range 30 Terrain Scan Density 310 Jamming Range 8 Armor Coverage 2400 Resistance: KI 25 Resistance: TH 50 Resistance: EM 100 Power Shielding 66 Point Defense Rating 240 Weapon Cycling 30 Phase Shifting 20 Evasion (%) 94 Targeting Accuracy 12 Target Analysis 12 Core Analysis 15 Armor Integrity Analysis 90 Recoil Reduction 6 Matter Filtering 50 Energy Filtering 30 Particle Charging 15 Kinecelleration 50 Salvage Targeting 3 Offensive Hacking 40 Defensive Hacking 5 Relay Coupler Types 109 Relay Coupler Value 3 Item Schematics ----------------- Minigun | -8/Materials | Hacked Matter Filter | -7/Factory | Hacked Adv. Signal Interpreter | -7/Factory | Hacked Enh. Autogun | -7/Factory | Hacked Imp. Plasma Cutter | -5/Factory | Hacked Imp. Armor Integrity Analyzer | -5/Factory | Hacked Cld. Airjet | -5/Factory | Hacked Adv. Hacking Suite | -5/Factory | Hacked Adv. System Shield | -5/Factory | Hacked Exp. Signal Interpreter | -5/Factory | Hacked Exp. Terrain Scanner | -5/Factory | Hacked Cld. Gravmag System | -4/Factory | Hacked Adv. Force Field | -4/Factory | Hacked Prc. Matter Filter | -3/Testing | Hacked Exp. Armor Integrity Analyzer | -2/Research | Hacked Exp. Phase Shifter | -2/Research | Hacked Adv. Kinecellerator | -2/Research | Hacked Exp. Target Analyzer | -2/Quarantine | Hacked Exp. Weapon Cycler | -2/Quarantine | Hacked Robot Schematics ------------------ None Fabricated ------------ Matter Filter | x2 | -7/Factory L-41 Fighter | x3 | -5/Factory | Preloaded L-41 Fighter | x3 | -5/Factory | Preloaded Cld. Airjet | x1 | -5/Factory Cld. Airjet | x1 | -5/Factory Exp. Signal Interpreter | x1 | -5/Factory Cld. Gravmag System | x1 | -4/Factory Cld. Gravmag System | x1 | -4/Factory Cld. Gravmag System | x1 | -4/Factory Cld. Gravmag System | x1 | -4/Factory Exp. Terrain Scanner | x1 | -4/Factory Enh. Autogun | x1 | -4/Factory Enh. Autogun | x1 | -4/Factory Prc. Matter Filter | x1 | -3/Testing Exp. Armor Integrity Analyzer | x1 | -2/Research Exp. Phase Shifter | x1 | -2/Research Adv. Kinecellerator | x1 | -2/Research Exp. Target Analyzer | x1 | -1/Access Exp. Weapon Cycler | x1 | -1/Access Alien Tech Used ----------------- Matter Drive Core Cannon Integrated Dissipator Core Membrane Subatomic Replicator Integrated Singularity Reactor Integrated Heat Negator Core Regenerator Sigix Quantum Sheargun LRC Insulator LRC Energy Well LRC Storage Integrity Redistributor Core Expander Achievements -------------- Below Ride The Lightning Challenges ------------ None RPGLIKE | -11 -10 -10 -10 -9 -8 -8 -8 -7 -7 -7 -7 -7 -7 -6 -6 -6 -6 -6 -6 -6 -6 -5 -5 -5 -5 -4 -4 -4 -4 -3 -3 -3 -2 -2 -2 -2 -1 -1 --------- Run | Scr Mat Min Exi Min Mat Gar Mat Fac Was Fac Gar Fac Gar Fac Was Fac Ext Cet Arc Hub Gar Fac Was Fac Gar Fac Gar Fac Gar Res Tes Gar Res Qua Sec Gar Acc Com Levels Raised 36 | . 1 1 . 1 4 3 2 1 . 2 1 1 . 1 . 1 1 . . 1 . 1 . 1 . 2 1 . . 2 1 . 3 . 1 . 2 1 XP Earned 57601 | 3000 1605 2510 350 600 6720 4434 1809 1769 189 2624 1792 1593 672 1420 67 1329 1121 324 174 831 415 1565 46 1118 597 2307 1052 652 537 2517 1071 678 3723 457 912 495 2598 1928 XP Spent 56900 | 1000 2000 2050 . 2360 6075 4150 1865 2605 . 950 3900 . . 2390 . . . 1200 . 2425 600 1600 . 2225 105 2930 . . . 1700 2500 520 3950 . . 3200 600 4000 Upgrades 88 | 2 6 3 . 6 19 4 3 5 . 5 3 . . 2 . . . 2 . 3 1 2 . 6 1 3 . . . 1 2 2 2 . . 1 2 2 Power Slot 1 | . . . . . . . . . . . . . . . . . . . . . . . . . . . . . . . . . . . . . . 1 Propulsion Slot 3 | 1 . . . . 2 . . . . . . . . . . . . . . . . . . . . . . . . . . . . . . . . . Utility Slot 11 | . 2 . . 1 1 . 1 . . . 1 . . 1 . . . . . . . . . . . 1 . . . . . . 1 . . 1 . 1 Weapon Slot 6 | 1 . 1 . 1 . . . . . . 1 . . . . . . . . . . . . . . . . . . 1 1 . . . . . . . Core Integrity 9 | . . . . 4 . . 1 3 . . . . . . . . . . . . . . . . 1 . . . . . . . . . . . . . Heat Dissipation 14 | . . . . . 5 . . . . 5 . . . . . . . . . . . . . . . . . . . . . 2 . . . . 2 . Energy Generation 4 | . . . . . 2 . . . . . . . . . . . . . . . . 1 . . . . . . . . . . 1 . . . . . Energy Storage 2 | . . . . . . . . . . . . . . . . . . . . . . . . 2 . . . . . . . . . . . . . . Mass Support 2 | . . . . . . . 1 . . . . . . . . . . . . . 1 . . . . . . . . . . . . . . . . . Inventory Capacity 8 | . 1 2 . . . 3 . 1 . . . . . . . . . . . 1 . . . . . . . . . . . . . . . . . . Sight Range 4 | . 2 . . . . . . . . . . . . . . . . 2 . . . . . . . . . . . . . . . . . . . . Sensor Range 8 | . . . . . 6 . . . . . . . . . . . . . . 2 . . . . . . . . . . . . . . . . . . Terrain Scan Density 3 | . 1 . . . . . . . . . . . . 1 . . . . . . . . . . . 1 . . . . . . . . . . . . Ranged Accuracy 2 | . . . . . 1 . . . . . 1 . . . . . . . . . . . . . . . . . . . . . . . . . . . Hack Attack % 4 | . . . . . 1 1 . 1 . . . . . . . . . . . . . 1 . . . . . . . . . . . . . . . . Hack Defense % 1 | . . . . . 1 . . . . . . . . . . . . . . . . . . . . . . . . . . . . . . . . . KI Resistance % 4 | . . . . . . . . . . . . . . . . . . . . . . . . 4 . . . . . . . . . . . . . . KI Damage % 2 | . . . . . . . . . . . . . . . . . . . . . . . . . . 1 . . . . 1 . . . . . . . Protomatter Created 15917 | . 129 7 10 42 386 285 211 . . 467 327 1054 416 238 . 655 581 . 69 1339 423 615 . 569 154 351 733 733 399 478 445 530 747 68 655 257 828 1716 Integrity Restored 33818 | . 282 345 267 267 1073 769 633 . 258 1160 921 1434 867 688 . 1631 1685 147 335 1795 985 1534 . 1483 1222 1059 890 905 1097 1389 1535 507 1640 122 943 837 1549 1564 Core 24539 | . 282 287 267 267 1020 568 633 . 155 655 638 971 685 476 . 894 876 64 131 962 744 1303 . 1318 916 654 702 649 944 1310 912 388 1287 78 773 688 1010 1032 Parts 9279 | . . 58 . . 53 201 . . 103 505 283 463 182 212 . 737 809 83 204 833 241 231 . 165 306 405 188 256 153 79 623 119 353 44 170 149 539 532 Protomatter Decayed 16936 | . 35 . . . . 58 . . . 101 51 802 77 . . 296 559 43 69 1049 292 145 . 98 . 190 614 777 27 29 212 478 1078 20 375 324 1807 7330 Game ------ Seed ReactiveProtonRedirector Manual? 0 Play Time 17:27:03 Cumulative 368.6 hours Start 2022.01.04 @ 00:05:54 End 2022.01.08 @ 17:54:05 Sessions 13 Manual Loads 0 Difficulty Rogue Special Mode Winter2019/RPGLIKE Game No. 16 Rogue 11 Adventurer 5 Explorer 0 Win Type 8 Total 17 Types 4/4/2/0/3/1/2/0/1 Lore% 68 Gallery% 82 Achievement% 76 Wizard Run 0 Options --------- ASCII 0 Keyboard 0 Movement Mouse Keybinds 0 Fullscreen 2 Font 18/SmallcapsGlow Map View 76x50 Tactical HUD 1 Map Filters NONE Filters NONE Steam 1 RUN: 6b6e1de7-e94c-4bfb-893b-d77d8fa67d6c